{"text_format":"1","workbook":"xlsx","n_sheets":2,"sheets":["KAG für Kinder nach außerhalb","Ausfüllhinweise"],"not_rendered":{"charts":0,"images":0,"macros":1,"external_links":0,"defined_names":0,"comments":0,"pivot_tables":0},"unopened":[],"bounds":{"document_bytes":16777216,"sheet_cells":100000,"rows_first":2000,"rows_last":500,"rows_between":2000,"halvings":0,"cell_chars":16384,"cell_head_chars":4096},"cells_cut":0,"cells_raw":0,"read":"whole","date_system":"1900"}

{"sheet":"KAG für Kinder nach außerhalb","index":0,"n_rows":500,"n_cols":37,"rows_kept":500,"cut":false,"hidden":false,"merged":[[2,0,2,1],[13,3,14,3],[13,4,14,4],[13,0,14,0],[13,1,14,1],[13,2,14,2],[2,14,2,15],[13,18,14,18],[13,19,14,19],[13,17,14,17],[13,16,14,16],[13,8,13,15],[2,5,2,10],[3,5,3,10],[4,5,4,10],[2,12,2,13]]}
["Antrag zum Kostenausgleich gemäß § 16 Abs 5 KitaG"]
["Dateiversion: 13.09.2017"]
[null,null,"Kosten\nPlatz/ Monat",null,"Amt/ Gemeinde:",null,null,null,null,null,null,null,"Stichtag:",null,"2019-12-01",null,null,null,null,null,null,null,null,null,null,null,null,null,null,null,"2019-09-01",1097,"-----"]
["Kinderkrippe bis 6 Stunden",null,{"$f":"ROUND(G7*(0.8/5)*0.886,2)","v":0},null,"Straße:",null,null,null,null,null,null,null,null,null,null,null,null,null,null,null,null,null,null,null,null,null,null,null,null,null,"2019-12-01",1097,"Rückstellung"]
["Kinderkrippe über 6 Stunden",null,{"$f":"ROUND(G7*0.2*0.886,2)","v":0},null,"PLZ Ort:",null,null,null,null,null,null,null,null,null,null,null,null,null,null,null,null,null,null,null,null,null,null,null,null,null,"2020-03-01",1097,"vorzeitige Einschulung"]
["Kinderkrippe Berlin 5-7 Stunden",null,{"$f":"ROUND((C4+C5)/2,2)","v":0},null,null,null,null,null,null,null,null,null,null,null,null,null,null,null,null,null,null,null,null,null,null,null,"Status:",null,null,null,"2020-06-01",1096]
["Kindergarten bis 6 Stunden",null,{"$f":"ROUND(G7*(0.8/11)*0.864,2)","v":0},null,null,"Durchschnittssatz des Trägers*:",0,null,null,null,null,null,null,null,null,null,null,null,null,null,null,null,null,null,null,null,1,null,null,null,"2020-09-01",1096]
["Kindergarten über 6 Stunden",null,{"$f":"ROUND(G7*(1/11)*0.864,2)","v":0},null,null,null,null,null,null,null,null,null,null,null,null,null,null,null,null,null,null,null,null,null,null,null,null,null,null,null,"WertDiffStichtag",{"$f":"IF(O3=AE3,AF3,IF(O3=AE4,AF4,IF(O3=AE5,AF5,IF(O3=AE6,AF6,IF(O3=AE7,AF7,1)))))","v":1097}]
["Kindergarten Berlin 5-7 Stunden",null,{"$f":"ROUND((C7+C8)/2,2)","v":0}]
["Hort bis 4 Stunden",null,{"$f":"ROUND(G7*(0.6/15)*0.84,2)","v":0}]
["Hort über 4 Stunden",null,{"$f":"ROUND(G7*(0.8/15)*0.84,2)","v":0},null,null,"Gesamtsumme:"]
[null,null,null,null,null,null,null,null,null,null,null,"Rechtsverbindliche Unterschrift/Datum/Stempel"]
[null,null,null,null,null,null,null,null,null,null,null,null,null,null,"*  Variante 2 des § 4 Abs. 2 des öffentlich-rechtlichen Vertrages"]
["Stadt/ Landkreis\n der Kita","Kita","Name des Kindes","Wohnort","geb. am",null,null,null,"Betreuung im Quartal",null,null,null,null,null,null,null,"Erstattungs-\nbetrag Quartal","Rückstellung oder\nvorzeitige Einschulung","Erstattungs-\nbetrag Quartal","Rechnungsbeleg vom"]
[null,null,null,null,null,"Betreuungs-\nbeginn","KÜ\nendet am","AG","KK\nbis 6 Std","KK\nüb. 6 Std","KK Berlin\n5 - 7 Std.","KG\nbis 6 Std","KG\nüb. 6 Std","KG Berlin\n5 - 7 Std.","H\nbis 4 Std","H\nüb. 4 Std"]
[1,2,3,4,5,6,7,8,9,10,11,12,13,14,15,16,17,18,17,18,null,null,null,null,null,null,"07a","09a","10a","11a","12a","13a","14a","15a","16a","17a","18a"]
[null,null,null,null,null,null,null,{"$f":"IF(AA17=0,\"\",IF(AA17<$AF$8,\"KK\",\"KG/H\"))","v":""},null,null,null,null,null,null,null,null,{"$f":"IF($AK17=0,\"\",IF($AK17>1,\"\",SUM($AB17:$AI17)))","v":""},"-----",{"$f":"IF(NOT(ISBLANK($T17)),IF($AK17=0,\"\",IF($AK17>1,\"\",SUM($AB17:$AI17))),0)","v":0},null,null,null,null,null,null,null,{"$f":"IF(E17=\"\",0,O$3-E17)","v":0},{"$f":"IF(I17=\"x\",$C$4*3,0)","v":0},{"$f":"IF(J17=\"x\",$C$5*3,0)","v":0},{"$f":"IF(K17=\"x\",$C$6*3,0)","v":0},{"$f":"IF(L17=\"x\",$C$7*3,0)","v":0},{"$f":"IF(M17=\"x\",$C$8*3,0)","v":0},{"$f":"IF(N17=\"x\",$C$9*3,0)","v":0},{"$f":"IF(O17=\"x\",$C$10*3,0)","v":0},{"$f":"IF(P17=\"x\",$C$11*3,0)","v":0},{"$f":"SUM(AB17:AH17)","v":0},{"$f":"COUNTA(I17:P17)","v":0}]
[null,null,null,null,null,null,null,"",null,null,null,null,null,null,null,null,"","-----",0,null,null,null,null,null,null,null,0,0,0,0,0,0,0,0,0,0,0]
[null,null,null,null,null,null,null,"",null,null,null,null,null,null,null,null,"","-----",0,null,null,null,null,null,null,null,0,0,0,0,0,0,0,0,0,0,0]
[null,null,null,null,null,null,null,"",null,null,null,null,null,null,null,null,"","-----",0,null,null,null,null,null,null,null,0,0,0,0,0,0,0,0,0,0,0]
[null,null,null,null,null,null,null,"",null,null,null,null,null,null,null,null,"","-----",0,null,null,null,null,null,null,null,0,0,0,0,0,0,0,0,0,0,0]
[null,null,null,null,null,null,null,"",null,null,null,null,null,null,null,null,"","-----",0,null,null,null,null,null,null,null,0,0,0,0,0,0,0,0,0,0,0]
[null,null,null,null,null,null,null,"",null,null,null,null,null,null,null,null,"","-----",0,null,null,null,null,null,null,null,0,0,0,0,0,0,0,0,0,0,0]
[null,null,null,null,null,null,null,"",null,null,null,null,null,null,null,null,"","-----",0,null,null,null,null,null,null,null,0,0,0,0,0,0,0,0,0,0,0]
[null,null,null,null,null,null,null,"",null,null,null,null,null,null,null,null,"","-----",0,null,null,null,null,null,null,null,0,0,0,0,0,0,0,0,0,0,0]
[null,null,null,null,null,null,null,"",null,null,null,null,null,null,null,null,"","-----",0,null,null,null,null,null,null,null,0,0,0,0,0,0,0,0,0,0,0]
[null,null,null,null,null,null,null,"",null,null,null,null,null,null,null,null,"","-----",0,null,null,null,null,null,null,null,0,0,0,0,0,0,0,0,0,0,0]
[null,null,null,null,null,null,null,"",null,null,null,null,null,null,null,null,"","-----",0,null,null,null,null,null,null,null,0,0,0,0,0,0,0,0,0,0,0]
[null,null,null,null,null,null,null,"",null,null,null,null,null,null,null,null,"","-----",0,null,null,null,null,null,null,null,0,0,0,0,0,0,0,0,0,0,0]
[null,null,null,null,null,null,null,"",null,null,null,null,null,null,null,null,"","-----",0,null,null,null,null,null,null,null,0,0,0,0,0,0,0,0,0,0,0]
[null,null,null,null,null,null,null,"",null,null,null,null,null,null,null,null,"","-----",0,null,null,null,null,null,null,null,0,0,0,0,0,0,0,0,0,0,0]
[null,null,null,null,null,null,null,"",null,null,null,null,null,null,null,null,"","-----",0,null,null,null,null,null,null,null,0,0,0,0,0,0,0,0,0,0,0]
[null,null,null,null,null,null,null,"",null,null,null,null,null,null,null,null,"","-----",0,null,null,null,null,null,null,null,0,0,0,0,0,0,0,0,0,0,0]
[null,null,null,null,null,null,null,"",null,null,null,null,null,null,null,null,"","-----",0,null,null,null,null,null,null,null,0,0,0,0,0,0,0,0,0,0,0]
[null,null,null,null,null,null,null,"",null,null,null,null,null,null,null,null,"","-----",0,null,null,null,null,null,null,null,0,0,0,0,0,0,0,0,0,0,0]
[null,null,null,null,null,null,null,"",null,null,null,null,null,null,null,null,"","-----",0,null,null,null,null,null,null,null,0,0,0,0,0,0,0,0,0,0,0]
[null,null,null,null,null,null,null,"",null,null,null,null,null,null,null,null,"","-----",0,null,null,null,null,null,null,null,0,0,0,0,0,0,0,0,0,0,0]
[null,null,null,null,null,null,null,"",null,null,null,null,null,null,null,null,"","-----",0,null,null,null,null,null,null,null,0,0,0,0,0,0,0,0,0,0,0]
[null,null,null,null,null,null,null,"",null,null,null,null,null,null,null,null,"","-----",0,null,null,null,null,null,null,null,0,0,0,0,0,0,0,0,0,0,0]
[null,null,null,null,null,null,null,"",null,null,null,null,null,null,null,null,"","-----",0,null,null,null,null,null,null,null,0,0,0,0,0,0,0,0,0,0,0]
[null,null,null,null,null,null,null,"",null,null,null,null,null,null,null,null,"","-----",0,null,null,null,null,null,null,null,0,0,0,0,0,0,0,0,0,0,0]
[null,null,null,null,null,null,null,"",null,null,null,null,null,null,null,null,"","-----",0,null,null,null,null,null,null,null,0,0,0,0,0,0,0,0,0,0,0]
[null,null,null,null,null,null,null,"",null,null,null,null,null,null,null,null,"","-----",0,null,null,null,null,null,null,null,0,0,0,0,0,0,0,0,0,0,0]
[null,null,null,null,null,null,null,"",null,null,null,null,null,null,null,null,"","-----",0,null,null,null,null,null,null,null,0,0,0,0,0,0,0,0,0,0,0]
[null,null,null,null,null,null,null,"",null,null,null,null,null,null,null,null,"","-----",0,null,null,null,null,null,null,null,0,0,0,0,0,0,0,0,0,0,0]
[null,null,null,null,null,null,null,"",null,null,null,null,null,null,null,null,"","-----",0,null,null,null,null,null,null,null,0,0,0,0,0,0,0,0,0,0,0]
[null,null,null,null,null,null,null,"",null,null,null,null,null,null,null,null,"","-----",0,null,null,null,null,null,null,null,0,0,0,0,0,0,0,0,0,0,0]
[null,null,null,null,null,null,null,"",null,null,null,null,null,null,null,null,"","-----",0,null,null,null,null,null,null,null,0,0,0,0,0,0,0,0,0,0,0]
[null,null,null,null,null,null,null,"",null,null,null,null,null,null,null,null,"","-----",0,null,null,null,null,null,null,null,0,0,0,0,0,0,0,0,0,0,0]
[null,null,null,null,null,null,null,"",null,null,null,null,null,null,null,null,"","-----",0,null,null,null,null,null,null,null,0,0,0,0,0,0,0,0,0,0,0]
[null,null,null,null,null,null,null,"",null,null,null,null,null,null,null,null,"","-----",0,null,null,null,null,null,null,null,0,0,0,0,0,0,0,0,0,0,0]
[null,null,null,null,null,null,null,"",null,null,null,null,null,null,null,null,"","-----",0,null,null,null,null,null,null,null,0,0,0,0,0,0,0,0,0,0,0]
[null,null,null,null,null,null,null,"",null,null,null,null,null,null,null,null,"","-----",0,null,null,null,null,null,null,null,0,0,0,0,0,0,0,0,0,0,0]
[null,null,null,null,null,null,null,"",null,null,null,null,null,null,null,null,"","-----",0,null,null,null,null,null,null,null,0,0,0,0,0,0,0,0,0,0,0]
[null,null,null,null,null,null,null,"",null,null,null,null,null,null,null,null,"","-----",0,null,null,null,null,null,null,null,0,0,0,0,0,0,0,0,0,0,0]
[null,null,null,null,null,null,null,"",null,null,null,null,null,null,null,null,"","-----",0,null,null,null,null,null,null,null,0,0,0,0,0,0,0,0,0,0,0]
[null,null,null,null,null,null,null,"",null,null,null,null,null,null,null,null,"","-----",0,null,null,null,null,null,null,null,0,0,0,0,0,0,0,0,0,0,0]
[null,null,null,null,null,null,null,"",null,null,null,null,null,null,null,null,"","-----",0,null,null,null,null,null,null,null,0,0,0,0,0,0,0,0,0,0,0]
[null,null,null,null,null,null,null,"",null,null,null,null,null,null,null,null,"","-----",0,null,null,null,null,null,null,null,0,0,0,0,0,0,0,0,0,0,0]
[null,null,null,null,null,null,null,"",null,null,null,null,null,null,null,null,"","-----",0,null,null,null,null,null,null,null,0,0,0,0,0,0,0,0,0,0,0]
[null,null,null,null,null,null,null,"",null,null,null,null,null,null,null,null,"","-----",0,null,null,null,null,null,null,null,0,0,0,0,0,0,0,0,0,0,0]
[null,null,null,null,null,null,null,"",null,null,null,null,null,null,null,null,"","-----",0,null,null,null,null,null,null,null,0,0,0,0,0,0,0,0,0,0,0]
[null,null,null,null,null,null,null,"",null,null,null,null,null,null,null,null,"","-----",0,null,null,null,null,null,null,null,0,0,0,0,0,0,0,0,0,0,0]
[null,null,null,null,null,null,null,"",null,null,null,null,null,null,null,null,"","-----",0,null,null,null,null,null,null,null,0,0,0,0,0,0,0,0,0,0,0]
[null,null,null,null,null,null,null,"",null,null,null,null,null,null,null,null,"","-----",0,null,null,null,null,null,null,null,0,0,0,0,0,0,0,0,0,0,0]
[null,null,null,null,null,null,null,"",null,null,null,null,null,null,null,null,"","-----",0,null,null,null,null,null,null,null,0,0,0,0,0,0,0,0,0,0,0]
[null,null,null,null,null,null,null,"",null,null,null,null,null,null,null,null,"","-----",0,null,null,null,null,null,null,null,0,0,0,0,0,0,0,0,0,0,0]
[null,null,null,null,null,null,null,"",null,null,null,null,null,null,null,null,"","-----",0,null,null,null,null,null,null,null,0,0,0,0,0,0,0,0,0,0,0]
[null,null,null,null,null,null,null,"",null,null,null,null,null,null,null,null,"","-----",0,null,null,null,null,null,null,null,0,0,0,0,0,0,0,0,0,0,0]
[null,null,null,null,null,null,null,"",null,null,null,null,null,null,null,null,"","-----",0,null,null,null,null,null,null,null,0,0,0,0,0,0,0,0,0,0,0]
[null,null,null,null,null,null,null,"",null,null,null,null,null,null,null,null,"","-----",0,null,null,null,null,null,null,null,0,0,0,0,0,0,0,0,0,0,0]
[null,null,null,null,null,null,null,"",null,null,null,null,null,null,null,null,"","-----",0,null,null,null,null,null,null,null,0,0,0,0,0,0,0,0,0,0,0]
[null,null,null,null,null,null,null,"",null,null,null,null,null,null,null,null,"","-----",0,null,null,null,null,null,null,null,0,0,0,0,0,0,0,0,0,0,0]
[null,null,null,null,null,null,null,"",null,null,null,null,null,null,null,null,"","-----",0,null,null,null,null,null,null,null,0,0,0,0,0,0,0,0,0,0,0]
[null,null,null,null,null,null,null,"",null,null,null,null,null,null,null,null,"","-----",0,null,null,null,null,null,null,null,0,0,0,0,0,0,0,0,0,0,0]
[null,null,null,null,null,null,null,"",null,null,null,null,null,null,null,null,"","-----",0,null,null,null,null,null,null,null,0,0,0,0,0,0,0,0,0,0,0]
[null,null,null,null,null,null,null,"",null,null,null,null,null,null,null,null,"","-----",0,null,null,null,null,null,null,null,0,0,0,0,0,0,0,0,0,0,0]
[null,null,null,null,null,null,null,"",null,null,null,null,null,null,null,null,"","-----",0,null,null,null,null,null,null,null,0,0,0,0,0,0,0,0,0,0,0]
[null,null,null,null,null,null,null,"",null,null,null,null,null,null,null,null,"","-----",0,null,null,null,null,null,null,null,0,0,0,0,0,0,0,0,0,0,0]
[null,null,null,null,null,null,null,"",null,null,null,null,null,null,null,null,"","-----",0,null,null,null,null,null,null,null,0,0,0,0,0,0,0,0,0,0,0]
[null,null,null,null,null,null,null,{"$f":"IF(AA81=0,\"\",IF(AA81<$AF$8,\"KK\",\"KG/H\"))","v":""},null,null,null,null,null,null,null,null,{"$f":"IF($AK81=0,\"\",IF($AK81>1,\"\",SUM($AB81:$AI81)))","v":""},"-----",{"$f":"IF(NOT(ISBLANK($T81)),IF($AK81=0,\"\",IF($AK81>1,\"\",SUM($AB81:$AI81))),0)","v":0},null,null,null,null,null,null,null,{"$f":"IF(E81=\"\",0,O$3-E81)","v":0},{"$f":"IF(I81=\"x\",$C$4*3,0)","v":0},{"$f":"IF(J81=\"x\",$C$5*3,0)","v":0},{"$f":"IF(K81=\"x\",$C$6*3,0)","v":0},{"$f":"IF(L81=\"x\",$C$7*3,0)","v":0},{"$f":"IF(M81=\"x\",$C$8*3,0)","v":0},{"$f":"IF(N81=\"x\",$C$9*3,0)","v":0},{"$f":"IF(O81=\"x\",$C$10*3,0)","v":0},{"$f":"IF(P81=\"x\",$C$11*3,0)","v":0},{"$f":"SUM(AB81:AH81)","v":0},{"$f":"COUNTA(I81:P81)","v":0}]
[null,null,null,null,null,null,null,"",null,null,null,null,null,null,null,null,"","-----",0,null,null,null,null,null,null,null,0,0,0,0,0,0,0,0,0,0,0]
[null,null,null,null,null,null,null,"",null,null,null,null,null,null,null,null,"","-----",0,null,null,null,null,null,null,null,0,0,0,0,0,0,0,0,0,0,0]
[null,null,null,null,null,null,null,"",null,null,null,null,null,null,null,null,"","-----",0,null,null,null,null,null,null,null,0,0,0,0,0,0,0,0,0,0,0]
[null,null,null,null,null,null,null,"",null,null,null,null,null,null,null,null,"","-----",0,null,null,null,null,null,null,null,0,0,0,0,0,0,0,0,0,0,0]
[null,null,null,null,null,null,null,"",null,null,null,null,null,null,null,null,"","-----",0,null,null,null,null,null,null,null,0,0,0,0,0,0,0,0,0,0,0]
[null,null,null,null,null,null,null,"",null,null,null,null,null,null,null,null,"","-----",0,null,null,null,null,null,null,null,0,0,0,0,0,0,0,0,0,0,0]
[null,null,null,null,null,null,null,"",null,null,null,null,null,null,null,null,"","-----",0,null,null,null,null,null,null,null,0,0,0,0,0,0,0,0,0,0,0]
[null,null,null,null,null,null,null,"",null,null,null,null,null,null,null,null,"","-----",0,null,null,null,null,null,null,null,0,0,0,0,0,0,0,0,0,0,0]
[null,null,null,null,null,null,null,"",null,null,null,null,null,null,null,null,"","-----",0,null,null,null,null,null,null,null,0,0,0,0,0,0,0,0,0,0,0]
[null,null,null,null,null,null,null,"",null,null,null,null,null,null,null,null,"","-----",0,null,null,null,null,null,null,null,0,0,0,0,0,0,0,0,0,0,0]
[null,null,null,null,null,null,null,"",null,null,null,null,null,null,null,null,"","-----",0,null,null,null,null,null,null,null,0,0,0,0,0,0,0,0,0,0,0]
[null,null,null,null,null,null,null,"",null,null,null,null,null,null,null,null,"","-----",0,null,null,null,null,null,null,null,0,0,0,0,0,0,0,0,0,0,0]
[null,null,null,null,null,null,null,"",null,null,null,null,null,null,null,null,"","-----",0,null,null,null,null,null,null,null,0,0,0,0,0,0,0,0,0,0,0]
[null,null,null,null,null,null,null,"",null,null,null,null,null,null,null,null,"","-----",0,null,null,null,null,null,null,null,0,0,0,0,0,0,0,0,0,0,0]
[null,null,null,null,null,null,null,"",null,null,null,null,null,null,null,null,"","-----",0,null,null,null,null,null,null,null,0,0,0,0,0,0,0,0,0,0,0]
[null,null,null,null,null,null,null,"",null,null,null,null,null,null,null,null,"","-----",0,null,null,null,null,null,null,null,0,0,0,0,0,0,0,0,0,0,0]
[null,null,null,null,null,null,null,"",null,null,null,null,null,null,null,null,"","-----",0,null,null,null,null,null,null,null,0,0,0,0,0,0,0,0,0,0,0]
[null,null,null,null,null,null,null,"",null,null,null,null,null,null,null,null,"","-----",0,null,null,null,null,null,null,null,0,0,0,0,0,0,0,0,0,0,0]
[null,null,null,null,null,null,null,"",null,null,null,null,null,null,null,null,"","-----",0,null,null,null,null,null,null,null,0,0,0,0,0,0,0,0,0,0,0]
[null,null,null,null,null,null,null,"",null,null,null,null,null,null,null,null,"","-----",0,null,null,null,null,null,null,null,0,0,0,0,0,0,0,0,0,0,0]
[null,null,null,null,null,null,null,"",null,null,null,null,null,null,null,null,"","-----",0,null,null,null,null,null,null,null,0,0,0,0,0,0,0,0,0,0,0]
[null,null,null,null,null,null,null,"",null,null,null,null,null,null,null,null,"","-----",0,null,null,null,null,null,null,null,0,0,0,0,0,0,0,0,0,0,0]
[null,null,null,null,null,null,null,"",null,null,null,null,null,null,null,null,"","-----",0,null,null,null,null,null,null,null,0,0,0,0,0,0,0,0,0,0,0]
[null,null,null,null,null,null,null,"",null,null,null,null,null,null,null,null,"","-----",0,null,null,null,null,null,null,null,0,0,0,0,0,0,0,0,0,0,0]
[null,null,null,null,null,null,null,"",null,null,null,null,null,null,null,null,"","-----",0,null,null,null,null,null,null,null,0,0,0,0,0,0,0,0,0,0,0]
[null,null,null,null,null,null,null,"",null,null,null,null,null,null,null,null,"","-----",0,null,null,null,null,null,null,null,0,0,0,0,0,0,0,0,0,0,0]
[null,null,null,null,null,null,null,"",null,null,null,null,null,null,null,null,"","-----",0,null,null,null,null,null,null,null,0,0,0,0,0,0,0,0,0,0,0]
[null,null,null,null,null,null,null,"",null,null,null,null,null,null,null,null,"","-----",0,null,null,null,null,null,null,null,0,0,0,0,0,0,0,0,0,0,0]
[null,null,null,null,null,null,null,"",null,null,null,null,null,null,null,null,"","-----",0,null,null,null,null,null,null,null,0,0,0,0,0,0,0,0,0,0,0]
[null,null,null,null,null,null,null,"",null,null,null,null,null,null,null,null,"","-----",0,null,null,null,null,null,null,null,0,0,0,0,0,0,0,0,0,0,0]
[null,null,null,null,null,null,null,"",null,null,null,null,null,null,null,null,"","-----",0,null,null,null,null,null,null,null,0,0,0,0,0,0,0,0,0,0,0]
[null,null,null,null,null,null,null,"",null,null,null,null,null,null,null,null,"","-----",0,null,null,null,null,null,null,null,0,0,0,0,0,0,0,0,0,0,0]
[null,null,null,null,null,null,null,"",null,null,null,null,null,null,null,null,"","-----",0,null,null,null,null,null,null,null,0,0,0,0,0,0,0,0,0,0,0]
[null,null,null,null,null,null,null,"",null,null,null,null,null,null,null,null,"","-----",0,null,null,null,null,null,null,null,0,0,0,0,0,0,0,0,0,0,0]
[null,null,null,null,null,null,null,"",null,null,null,null,null,null,null,null,"","-----",0,null,null,null,null,null,null,null,0,0,0,0,0,0,0,0,0,0,0]
[null,null,null,null,null,null,null,"",null,null,null,null,null,null,null,null,"","-----",0,null,null,null,null,null,null,null,0,0,0,0,0,0,0,0,0,0,0]
[null,null,null,null,null,null,null,"",null,null,null,null,null,null,null,null,"","-----",0,null,null,null,null,null,null,null,0,0,0,0,0,0,0,0,0,0,0]
[null,null,null,null,null,null,null,"",null,null,null,null,null,null,null,null,"","-----",0,null,null,null,null,null,null,null,0,0,0,0,0,0,0,0,0,0,0]
[null,null,null,null,null,null,null,"",null,null,null,null,null,null,null,null,"","-----",0,null,null,null,null,null,null,null,0,0,0,0,0,0,0,0,0,0,0]
[null,null,null,null,null,null,null,"",null,null,null,null,null,null,null,null,"","-----",0,null,null,null,null,null,null,null,0,0,0,0,0,0,0,0,0,0,0]
[null,null,null,null,null,null,null,"",null,null,null,null,null,null,null,null,"","-----",0,null,null,null,null,null,null,null,0,0,0,0,0,0,0,0,0,0,0]
[null,null,null,null,null,null,null,"",null,null,null,null,null,null,null,null,"","-----",0,null,null,null,null,null,null,null,0,0,0,0,0,0,0,0,0,0,0]
[null,null,null,null,null,null,null,"",null,null,null,null,null,null,null,null,"","-----",0,null,null,null,null,null,null,null,0,0,0,0,0,0,0,0,0,0,0]
[null,null,null,null,null,null,null,"",null,null,null,null,null,null,null,null,"","-----",0,null,null,null,null,null,null,null,0,0,0,0,0,0,0,0,0,0,0]
[null,null,null,null,null,null,null,"",null,null,null,null,null,null,null,null,"","-----",0,null,null,null,null,null,null,null,0,0,0,0,0,0,0,0,0,0,0]
[null,null,null,null,null,null,null,"",null,null,null,null,null,null,null,null,"","-----",0,null,null,null,null,null,null,null,0,0,0,0,0,0,0,0,0,0,0]
[null,null,null,null,null,null,null,"",null,null,null,null,null,null,null,null,"","-----",0,null,null,null,null,null,null,null,0,0,0,0,0,0,0,0,0,0,0]
[null,null,null,null,null,null,null,"",null,null,null,null,null,null,null,null,"","-----",0,null,null,null,null,null,null,null,0,0,0,0,0,0,0,0,0,0,0]
[null,null,null,null,null,null,null,"",null,null,null,null,null,null,null,null,"","-----",0,null,null,null,null,null,null,null,0,0,0,0,0,0,0,0,0,0,0]
[null,null,null,null,null,null,null,"",null,null,null,null,null,null,null,null,"","-----",0,null,null,null,null,null,null,null,0,0,0,0,0,0,0,0,0,0,0]
[null,null,null,null,null,null,null,"",null,null,null,null,null,null,null,null,"","-----",0,null,null,null,null,null,null,null,0,0,0,0,0,0,0,0,0,0,0]
[null,null,null,null,null,null,null,"",null,null,null,null,null,null,null,null,"","-----",0,null,null,null,null,null,null,null,0,0,0,0,0,0,0,0,0,0,0]
[null,null,null,null,null,null,null,"",null,null,null,null,null,null,null,null,"","-----",0,null,null,null,null,null,null,null,0,0,0,0,0,0,0,0,0,0,0]
[null,null,null,null,null,null,null,"",null,null,null,null,null,null,null,null,"","-----",0,null,null,null,null,null,null,null,0,0,0,0,0,0,0,0,0,0,0]
[null,null,null,null,null,null,null,"",null,null,null,null,null,null,null,null,"","-----",0,null,null,null,null,null,null,null,0,0,0,0,0,0,0,0,0,0,0]
[null,null,null,null,null,null,null,"",null,null,null,null,null,null,null,null,"","-----",0,null,null,null,null,null,null,null,0,0,0,0,0,0,0,0,0,0,0]
[null,null,null,null,null,null,null,"",null,null,null,null,null,null,null,null,"","-----",0,null,null,null,null,null,null,null,0,0,0,0,0,0,0,0,0,0,0]
[null,null,null,null,null,null,null,"",null,null,null,null,null,null,null,null,"","-----",0,null,null,null,null,null,null,null,0,0,0,0,0,0,0,0,0,0,0]
[null,null,null,null,null,null,null,"",null,null,null,null,null,null,null,null,"","-----",0,null,null,null,null,null,null,null,0,0,0,0,0,0,0,0,0,0,0]
[null,null,null,null,null,null,null,"",null,null,null,null,null,null,null,null,"","-----",0,null,null,null,null,null,null,null,0,0,0,0,0,0,0,0,0,0,0]
[null,null,null,null,null,null,null,"",null,null,null,null,null,null,null,null,"","-----",0,null,null,null,null,null,null,null,0,0,0,0,0,0,0,0,0,0,0]
[null,null,null,null,null,null,null,"",null,null,null,null,null,null,null,null,"","-----",0,null,null,null,null,null,null,null,0,0,0,0,0,0,0,0,0,0,0]
[null,null,null,null,null,null,null,"",null,null,null,null,null,null,null,null,"","-----",0,null,null,null,null,null,null,null,0,0,0,0,0,0,0,0,0,0,0]
[null,null,null,null,null,null,null,{"$f":"IF(AA145=0,\"\",IF(AA145<$AF$8,\"KK\",\"KG/H\"))","v":""},null,null,null,null,null,null,null,null,{"$f":"IF($AK145=0,\"\",IF($AK145>1,\"\",SUM($AB145:$AI145)))","v":""},"-----",{"$f":"IF(NOT(ISBLANK($T145)),IF($AK145=0,\"\",IF($AK145>1,\"\",SUM($AB145:$AI145))),0)","v":0},null,null,null,null,null,null,null,{"$f":"IF(E145=\"\",0,O$3-E145)","v":0},{"$f":"IF(I145=\"x\",$C$4*3,0)","v":0},{"$f":"IF(J145=\"x\",$C$5*3,0)","v":0},{"$f":"IF(K145=\"x\",$C$6*3,0)","v":0},{"$f":"IF(L145=\"x\",$C$7*3,0)","v":0},{"$f":"IF(M145=\"x\",$C$8*3,0)","v":0},{"$f":"IF(N145=\"x\",$C$9*3,0)","v":0},{"$f":"IF(O145=\"x\",$C$10*3,0)","v":0},{"$f":"IF(P145=\"x\",$C$11*3,0)","v":0},{"$f":"SUM(AB145:AH145)","v":0},{"$f":"COUNTA(I145:P145)","v":0}]
[null,null,null,null,null,null,null,"",null,null,null,null,null,null,null,null,"","-----",0,null,null,null,null,null,null,null,0,0,0,0,0,0,0,0,0,0,0]
[null,null,null,null,null,null,null,"",null,null,null,null,null,null,null,null,"","-----",0,null,null,null,null,null,null,null,0,0,0,0,0,0,0,0,0,0,0]
[null,null,null,null,null,null,null,"",null,null,null,null,null,null,null,null,"","-----",0,null,null,null,null,null,null,null,0,0,0,0,0,0,0,0,0,0,0]
[null,null,null,null,null,null,null,"",null,null,null,null,null,null,null,null,"","-----",0,null,null,null,null,null,null,null,0,0,0,0,0,0,0,0,0,0,0]
[null,null,null,null,null,null,null,"",null,null,null,null,null,null,null,null,"","-----",0,null,null,null,null,null,null,null,0,0,0,0,0,0,0,0,0,0,0]
[null,null,null,null,null,null,null,"",null,null,null,null,null,null,null,null,"","-----",0,null,null,null,null,null,null,null,0,0,0,0,0,0,0,0,0,0,0]
[null,null,null,null,null,null,null,"",null,null,null,null,null,null,null,null,"","-----",0,null,null,null,null,null,null,null,0,0,0,0,0,0,0,0,0,0,0]
[null,null,null,null,null,null,null,"",null,null,null,null,null,null,null,null,"","-----",0,null,null,null,null,null,null,null,0,0,0,0,0,0,0,0,0,0,0]
[null,null,null,null,null,null,null,"",null,null,null,null,null,null,null,null,"","-----",0,null,null,null,null,null,null,null,0,0,0,0,0,0,0,0,0,0,0]
[null,null,null,null,null,null,null,"",null,null,null,null,null,null,null,null,"","-----",0,null,null,null,null,null,null,null,0,0,0,0,0,0,0,0,0,0,0]
[null,null,null,null,null,null,null,"",null,null,null,null,null,null,null,null,"","-----",0,null,null,null,null,null,null,null,0,0,0,0,0,0,0,0,0,0,0]
[null,null,null,null,null,null,null,"",null,null,null,null,null,null,null,null,"","-----",0,null,null,null,null,null,null,null,0,0,0,0,0,0,0,0,0,0,0]
[null,null,null,null,null,null,null,"",null,null,null,null,null,null,null,null,"","-----",0,null,null,null,null,null,null,null,0,0,0,0,0,0,0,0,0,0,0]
[null,null,null,null,null,null,null,"",null,null,null,null,null,null,null,null,"","-----",0,null,null,null,null,null,null,null,0,0,0,0,0,0,0,0,0,0,0]
[null,null,null,null,null,null,null,"",null,null,null,null,null,null,null,null,"","-----",0,null,null,null,null,null,null,null,0,0,0,0,0,0,0,0,0,0,0]
[null,null,null,null,null,null,null,"",null,null,null,null,null,null,null,null,"","-----",0,null,null,null,null,null,null,null,0,0,0,0,0,0,0,0,0,0,0]
[null,null,null,null,null,null,null,"",null,null,null,null,null,null,null,null,"","-----",0,null,null,null,null,null,null,null,0,0,0,0,0,0,0,0,0,0,0]
[null,null,null,null,null,null,null,"",null,null,null,null,null,null,null,null,"","-----",0,null,null,null,null,null,null,null,0,0,0,0,0,0,0,0,0,0,0]
[null,null,null,null,null,null,null,"",null,null,null,null,null,null,null,null,"","-----",0,null,null,null,null,null,null,null,0,0,0,0,0,0,0,0,0,0,0]
[null,null,null,null,null,null,null,"",null,null,null,null,null,null,null,null,"","-----",0,null,null,null,null,null,null,null,0,0,0,0,0,0,0,0,0,0,0]
[null,null,null,null,null,null,null,"",null,null,null,null,null,null,null,null,"","-----",0,null,null,null,null,null,null,null,0,0,0,0,0,0,0,0,0,0,0]
[null,null,null,null,null,null,null,"",null,null,null,null,null,null,null,null,"","-----",0,null,null,null,null,null,null,null,0,0,0,0,0,0,0,0,0,0,0]
[null,null,null,null,null,null,null,"",null,null,null,null,null,null,null,null,"","-----",0,null,null,null,null,null,null,null,0,0,0,0,0,0,0,0,0,0,0]
[null,null,null,null,null,null,null,"",null,null,null,null,null,null,null,null,"","-----",0,null,null,null,null,null,null,null,0,0,0,0,0,0,0,0,0,0,0]
[null,null,null,null,null,null,null,"",null,null,null,null,null,null,null,null,"","-----",0,null,null,null,null,null,null,null,0,0,0,0,0,0,0,0,0,0,0]
[null,null,null,null,null,null,null,"",null,null,null,null,null,null,null,null,"","-----",0,null,null,null,null,null,null,null,0,0,0,0,0,0,0,0,0,0,0]
[null,null,null,null,null,null,null,"",null,null,null,null,null,null,null,null,"","-----",0,null,null,null,null,null,null,null,0,0,0,0,0,0,0,0,0,0,0]
[null,null,null,null,null,null,null,"",null,null,null,null,null,null,null,null,"","-----",0,null,null,null,null,null,null,null,0,0,0,0,0,0,0,0,0,0,0]
[null,null,null,null,null,null,null,"",null,null,null,null,null,null,null,null,"","-----",0,null,null,null,null,null,null,null,0,0,0,0,0,0,0,0,0,0,0]
[null,null,null,null,null,null,null,"",null,null,null,null,null,null,null,null,"","-----",0,null,null,null,null,null,null,null,0,0,0,0,0,0,0,0,0,0,0]
[null,null,null,null,null,null,null,"",null,null,null,null,null,null,null,null,"","-----",0,null,null,null,null,null,null,null,0,0,0,0,0,0,0,0,0,0,0]
[null,null,null,null,null,null,null,"",null,null,null,null,null,null,null,null,"","-----",0,null,null,null,null,null,null,null,0,0,0,0,0,0,0,0,0,0,0]
[null,null,null,null,null,null,null,"",null,null,null,null,null,null,null,null,"","-----",0,null,null,null,null,null,null,null,0,0,0,0,0,0,0,0,0,0,0]
[null,null,null,null,null,null,null,"",null,null,null,null,null,null,null,null,"","-----",0,null,null,null,null,null,null,null,0,0,0,0,0,0,0,0,0,0,0]
[null,null,null,null,null,null,null,"",null,null,null,null,null,null,null,null,"","-----",0,null,null,null,null,null,null,null,0,0,0,0,0,0,0,0,0,0,0]
[null,null,null,null,null,null,null,"",null,null,null,null,null,null,null,null,"","-----",0,null,null,null,null,null,null,null,0,0,0,0,0,0,0,0,0,0,0]
[null,null,null,null,null,null,null,"",null,null,null,null,null,null,null,null,"","-----",0,null,null,null,null,null,null,null,0,0,0,0,0,0,0,0,0,0,0]
[null,null,null,null,null,null,null,"",null,null,null,null,null,null,null,null,"","-----",0,null,null,null,null,null,null,null,0,0,0,0,0,0,0,0,0,0,0]
[null,null,null,null,null,null,null,"",null,null,null,null,null,null,null,null,"","-----",0,null,null,null,null,null,null,null,0,0,0,0,0,0,0,0,0,0,0]
[null,null,null,null,null,null,null,"",null,null,null,null,null,null,null,null,"","-----",0,null,null,null,null,null,null,null,0,0,0,0,0,0,0,0,0,0,0]
[null,null,null,null,null,null,null,"",null,null,null,null,null,null,null,null,"","-----",0,null,null,null,null,null,null,null,0,0,0,0,0,0,0,0,0,0,0]
[null,null,null,null,null,null,null,"",null,null,null,null,null,null,null,null,"","-----",0,null,null,null,null,null,null,null,0,0,0,0,0,0,0,0,0,0,0]
[null,null,null,null,null,null,null,"",null,null,null,null,null,null,null,null,"","-----",0,null,null,null,null,null,null,null,0,0,0,0,0,0,0,0,0,0,0]
[null,null,null,null,null,null,null,"",null,null,null,null,null,null,null,null,"","-----",0,null,null,null,null,null,null,null,0,0,0,0,0,0,0,0,0,0,0]
[null,null,null,null,null,null,null,"",null,null,null,null,null,null,null,null,"","-----",0,null,null,null,null,null,null,null,0,0,0,0,0,0,0,0,0,0,0]
[null,null,null,null,null,null,null,"",null,null,null,null,null,null,null,null,"","-----",0,null,null,null,null,null,null,null,0,0,0,0,0,0,0,0,0,0,0]
[null,null,null,null,null,null,null,"",null,null,null,null,null,null,null,null,"","-----",0,null,null,null,null,null,null,null,0,0,0,0,0,0,0,0,0,0,0]
[null,null,null,null,null,null,null,"",null,null,null,null,null,null,null,null,"","-----",0,null,null,null,null,null,null,null,0,0,0,0,0,0,0,0,0,0,0]
[null,null,null,null,null,null,null,"",null,null,null,null,null,null,null,null,"","-----",0,null,null,null,null,null,null,null,0,0,0,0,0,0,0,0,0,0,0]
[null,null,null,null,null,null,null,"",null,null,null,null,null,null,null,null,"","-----",0,null,null,null,null,null,null,null,0,0,0,0,0,0,0,0,0,0,0]
[null,null,null,null,null,null,null,"",null,null,null,null,null,null,null,null,"","-----",0,null,null,null,null,null,null,null,0,0,0,0,0,0,0,0,0,0,0]
[null,null,null,null,null,null,null,"",null,null,null,null,null,null,null,null,"","-----",0,null,null,null,null,null,null,null,0,0,0,0,0,0,0,0,0,0,0]
[null,null,null,null,null,null,null,"",null,null,null,null,null,null,null,null,"","-----",0,null,null,null,null,null,null,null,0,0,0,0,0,0,0,0,0,0,0]
[null,null,null,null,null,null,null,"",null,null,null,null,null,null,null,null,"","-----",0,null,null,null,null,null,null,null,0,0,0,0,0,0,0,0,0,0,0]
[null,null,null,null,null,null,null,"",null,null,null,null,null,null,null,null,"","-----",0,null,null,null,null,null,null,null,0,0,0,0,0,0,0,0,0,0,0]
[null,null,null,null,null,null,null,"",null,null,null,null,null,null,null,null,"","-----",0,null,null,null,null,null,null,null,0,0,0,0,0,0,0,0,0,0,0]
[null,null,null,null,null,null,null,"",null,null,null,null,null,null,null,null,"","-----",0,null,null,null,null,null,null,null,0,0,0,0,0,0,0,0,0,0,0]
[null,null,null,null,null,null,null,"",null,null,null,null,null,null,null,null,"","-----",0,null,null,null,null,null,null,null,0,0,0,0,0,0,0,0,0,0,0]
[null,null,null,null,null,null,null,"",null,null,null,null,null,null,null,null,"","-----",0,null,null,null,null,null,null,null,0,0,0,0,0,0,0,0,0,0,0]
[null,null,null,null,null,null,null,"",null,null,null,null,null,null,null,null,"","-----",0,null,null,null,null,null,null,null,0,0,0,0,0,0,0,0,0,0,0]
[null,null,null,null,null,null,null,"",null,null,null,null,null,null,null,null,"","-----",0,null,null,null,null,null,null,null,0,0,0,0,0,0,0,0,0,0,0]
[null,null,null,null,null,null,null,"",null,null,null,null,null,null,null,null,"","-----",0,null,null,null,null,null,null,null,0,0,0,0,0,0,0,0,0,0,0]
[null,null,null,null,null,null,null,"",null,null,null,null,null,null,null,null,"","-----",0,null,null,null,null,null,null,null,0,0,0,0,0,0,0,0,0,0,0]
[null,null,null,null,null,null,null,{"$f":"IF(AA209=0,\"\",IF(AA209<$AF$8,\"KK\",\"KG/H\"))","v":""},null,null,null,null,null,null,null,null,{"$f":"IF($AK209=0,\"\",IF($AK209>1,\"\",SUM($AB209:$AI209)))","v":""},"-----",{"$f":"IF(NOT(ISBLANK($T209)),IF($AK209=0,\"\",IF($AK209>1,\"\",SUM($AB209:$AI209))),0)","v":0},null,null,null,null,null,null,null,{"$f":"IF(E209=\"\",0,O$3-E209)","v":0},{"$f":"IF(I209=\"x\",$C$4*3,0)","v":0},{"$f":"IF(J209=\"x\",$C$5*3,0)","v":0},{"$f":"IF(K209=\"x\",$C$6*3,0)","v":0},{"$f":"IF(L209=\"x\",$C$7*3,0)","v":0},{"$f":"IF(M209=\"x\",$C$8*3,0)","v":0},{"$f":"IF(N209=\"x\",$C$9*3,0)","v":0},{"$f":"IF(O209=\"x\",$C$10*3,0)","v":0},{"$f":"IF(P209=\"x\",$C$11*3,0)","v":0},{"$f":"SUM(AB209:AH209)","v":0},{"$f":"COUNTA(I209:P209)","v":0}]
[null,null,null,null,null,null,null,"",null,null,null,null,null,null,null,null,"","-----",0,null,null,null,null,null,null,null,0,0,0,0,0,0,0,0,0,0,0]
[null,null,null,null,null,null,null,"",null,null,null,null,null,null,null,null,"","-----",0,null,null,null,null,null,null,null,0,0,0,0,0,0,0,0,0,0,0]
[null,null,null,null,null,null,null,"",null,null,null,null,null,null,null,null,"","-----",0,null,null,null,null,null,null,null,0,0,0,0,0,0,0,0,0,0,0]
[null,null,null,null,null,null,null,"",null,null,null,null,null,null,null,null,"","-----",0,null,null,null,null,null,null,null,0,0,0,0,0,0,0,0,0,0,0]
[null,null,null,null,null,null,null,"",null,null,null,null,null,null,null,null,"","-----",0,null,null,null,null,null,null,null,0,0,0,0,0,0,0,0,0,0,0]
[null,null,null,null,null,null,null,"",null,null,null,null,null,null,null,null,"","-----",0,null,null,null,null,null,null,null,0,0,0,0,0,0,0,0,0,0,0]
[null,null,null,null,null,null,null,"",null,null,null,null,null,null,null,null,"","-----",0,null,null,null,null,null,null,null,0,0,0,0,0,0,0,0,0,0,0]
[null,null,null,null,null,null,null,"",null,null,null,null,null,null,null,null,"","-----",0,null,null,null,null,null,null,null,0,0,0,0,0,0,0,0,0,0,0]
[null,null,null,null,null,null,null,"",null,null,null,null,null,null,null,null,"","-----",0,null,null,null,null,null,null,null,0,0,0,0,0,0,0,0,0,0,0]
[null,null,null,null,null,null,null,"",null,null,null,null,null,null,null,null,"","-----",0,null,null,null,null,null,null,null,0,0,0,0,0,0,0,0,0,0,0]
[null,null,null,null,null,null,null,"",null,null,null,null,null,null,null,null,"","-----",0,null,null,null,null,null,null,null,0,0,0,0,0,0,0,0,0,0,0]
[null,null,null,null,null,null,null,"",null,null,null,null,null,null,null,null,"","-----",0,null,null,null,null,null,null,null,0,0,0,0,0,0,0,0,0,0,0]
[null,null,null,null,null,null,null,"",null,null,null,null,null,null,null,null,"","-----",0,null,null,null,null,null,null,null,0,0,0,0,0,0,0,0,0,0,0]
[null,null,null,null,null,null,null,"",null,null,null,null,null,null,null,null,"","-----",0,null,null,null,null,null,null,null,0,0,0,0,0,0,0,0,0,0,0]
[null,null,null,null,null,null,null,"",null,null,null,null,null,null,null,null,"","-----",0,null,null,null,null,null,null,null,0,0,0,0,0,0,0,0,0,0,0]
[null,null,null,null,null,null,null,"",null,null,null,null,null,null,null,null,"","-----",0,null,null,null,null,null,null,null,0,0,0,0,0,0,0,0,0,0,0]
[null,null,null,null,null,null,null,"",null,null,null,null,null,null,null,null,"","-----",0,null,null,null,null,null,null,null,0,0,0,0,0,0,0,0,0,0,0]
[null,null,null,null,null,null,null,"",null,null,null,null,null,null,null,null,"","-----",0,null,null,null,null,null,null,null,0,0,0,0,0,0,0,0,0,0,0]
[null,null,null,null,null,null,null,"",null,null,null,null,null,null,null,null,"","-----",0,null,null,null,null,null,null,null,0,0,0,0,0,0,0,0,0,0,0]
[null,null,null,null,null,null,null,"",null,null,null,null,null,null,null,null,"","-----",0,null,null,null,null,null,null,null,0,0,0,0,0,0,0,0,0,0,0]
[null,null,null,null,null,null,null,"",null,null,null,null,null,null,null,null,"","-----",0,null,null,null,null,null,null,null,0,0,0,0,0,0,0,0,0,0,0]
[null,null,null,null,null,null,null,"",null,null,null,null,null,null,null,null,"","-----",0,null,null,null,null,null,null,null,0,0,0,0,0,0,0,0,0,0,0]
[null,null,null,null,null,null,null,"",null,null,null,null,null,null,null,null,"","-----",0,null,null,null,null,null,null,null,0,0,0,0,0,0,0,0,0,0,0]
[null,null,null,null,null,null,null,"",null,null,null,null,null,null,null,null,"","-----",0,null,null,null,null,null,null,null,0,0,0,0,0,0,0,0,0,0,0]
[null,null,null,null,null,null,null,"",null,null,null,null,null,null,null,null,"","-----",0,null,null,null,null,null,null,null,0,0,0,0,0,0,0,0,0,0,0]
[null,null,null,null,null,null,null,"",null,null,null,null,null,null,null,null,"","-----",0,null,null,null,null,null,null,null,0,0,0,0,0,0,0,0,0,0,0]
[null,null,null,null,null,null,null,"",null,null,null,null,null,null,null,null,"","-----",0,null,null,null,null,null,null,null,0,0,0,0,0,0,0,0,0,0,0]
[null,null,null,null,null,null,null,"",null,null,null,null,null,null,null,null,"","-----",0,null,null,null,null,null,null,null,0,0,0,0,0,0,0,0,0,0,0]
[null,null,null,null,null,null,null,"",null,null,null,null,null,null,null,null,"","-----",0,null,null,null,null,null,null,null,0,0,0,0,0,0,0,0,0,0,0]
[null,null,null,null,null,null,null,"",null,null,null,null,null,null,null,null,"","-----",0,null,null,null,null,null,null,null,0,0,0,0,0,0,0,0,0,0,0]
[null,null,null,null,null,null,null,"",null,null,null,null,null,null,null,null,"","-----",0,null,null,null,null,null,null,null,0,0,0,0,0,0,0,0,0,0,0]
[null,null,null,null,null,null,null,"",null,null,null,null,null,null,null,null,"","-----",0,null,null,null,null,null,null,null,0,0,0,0,0,0,0,0,0,0,0]
[null,null,null,null,null,null,null,"",null,null,null,null,null,null,null,null,"","-----",0,null,null,null,null,null,null,null,0,0,0,0,0,0,0,0,0,0,0]
[null,null,null,null,null,null,null,"",null,null,null,null,null,null,null,null,"","-----",0,null,null,null,null,null,null,null,0,0,0,0,0,0,0,0,0,0,0]
[null,null,null,null,null,null,null,"",null,null,null,null,null,null,null,null,"","-----",0,null,null,null,null,null,null,null,0,0,0,0,0,0,0,0,0,0,0]
[null,null,null,null,null,null,null,"",null,null,null,null,null,null,null,null,"","-----",0,null,null,null,null,null,null,null,0,0,0,0,0,0,0,0,0,0,0]
[null,null,null,null,null,null,null,"",null,null,null,null,null,null,null,null,"","-----",0,null,null,null,null,null,null,null,0,0,0,0,0,0,0,0,0,0,0]
[null,null,null,null,null,null,null,"",null,null,null,null,null,null,null,null,"","-----",0,null,null,null,null,null,null,null,0,0,0,0,0,0,0,0,0,0,0]
[null,null,null,null,null,null,null,"",null,null,null,null,null,null,null,null,"","-----",0,null,null,null,null,null,null,null,0,0,0,0,0,0,0,0,0,0,0]
[null,null,null,null,null,null,null,"",null,null,null,null,null,null,null,null,"","-----",0,null,null,null,null,null,null,null,0,0,0,0,0,0,0,0,0,0,0]
[null,null,null,null,null,null,null,"",null,null,null,null,null,null,null,null,"","-----",0,null,null,null,null,null,null,null,0,0,0,0,0,0,0,0,0,0,0]
[null,null,null,null,null,null,null,"",null,null,null,null,null,null,null,null,"","-----",0,null,null,null,null,null,null,null,0,0,0,0,0,0,0,0,0,0,0]
[null,null,null,null,null,null,null,"",null,null,null,null,null,null,null,null,"","-----",0,null,null,null,null,null,null,null,0,0,0,0,0,0,0,0,0,0,0]
[null,null,null,null,null,null,null,"",null,null,null,null,null,null,null,null,"","-----",0,null,null,null,null,null,null,null,0,0,0,0,0,0,0,0,0,0,0]
[null,null,null,null,null,null,null,"",null,null,null,null,null,null,null,null,"","-----",0,null,null,null,null,null,null,null,0,0,0,0,0,0,0,0,0,0,0]
[null,null,null,null,null,null,null,"",null,null,null,null,null,null,null,null,"","-----",0,null,null,null,null,null,null,null,0,0,0,0,0,0,0,0,0,0,0]
[null,null,null,null,null,null,null,"",null,null,null,null,null,null,null,null,"","-----",0,null,null,null,null,null,null,null,0,0,0,0,0,0,0,0,0,0,0]
[null,null,null,null,null,null,null,"",null,null,null,null,null,null,null,null,"","-----",0,null,null,null,null,null,null,null,0,0,0,0,0,0,0,0,0,0,0]
[null,null,null,null,null,null,null,"",null,null,null,null,null,null,null,null,"","-----",0,null,null,null,null,null,null,null,0,0,0,0,0,0,0,0,0,0,0]
[null,null,null,null,null,null,null,"",null,null,null,null,null,null,null,null,"","-----",0,null,null,null,null,null,null,null,0,0,0,0,0,0,0,0,0,0,0]
[null,null,null,null,null,null,null,"",null,null,null,null,null,null,null,null,"","-----",0,null,null,null,null,null,null,null,0,0,0,0,0,0,0,0,0,0,0]
[null,null,null,null,null,null,null,"",null,null,null,null,null,null,null,null,"","-----",0,null,null,null,null,null,null,null,0,0,0,0,0,0,0,0,0,0,0]
[null,null,null,null,null,null,null,"",null,null,null,null,null,null,null,null,"","-----",0,null,null,null,null,null,null,null,0,0,0,0,0,0,0,0,0,0,0]
[null,null,null,null,null,null,null,"",null,null,null,null,null,null,null,null,"","-----",0,null,null,null,null,null,null,null,0,0,0,0,0,0,0,0,0,0,0]
[null,null,null,null,null,null,null,"",null,null,null,null,null,null,null,null,"","-----",0,null,null,null,null,null,null,null,0,0,0,0,0,0,0,0,0,0,0]
[null,null,null,null,null,null,null,"",null,null,null,null,null,null,null,null,"","-----",0,null,null,null,null,null,null,null,0,0,0,0,0,0,0,0,0,0,0]
[null,null,null,null,null,null,null,"",null,null,null,null,null,null,null,null,"","-----",0,null,null,null,null,null,null,null,0,0,0,0,0,0,0,0,0,0,0]
[null,null,null,null,null,null,null,"",null,null,null,null,null,null,null,null,"","-----",0,null,null,null,null,null,null,null,0,0,0,0,0,0,0,0,0,0,0]
[null,null,null,null,null,null,null,"",null,null,null,null,null,null,null,null,"","-----",0,null,null,null,null,null,null,null,0,0,0,0,0,0,0,0,0,0,0]
[null,null,null,null,null,null,null,"",null,null,null,null,null,null,null,null,"","-----",0,null,null,null,null,null,null,null,0,0,0,0,0,0,0,0,0,0,0]
[null,null,null,null,null,null,null,"",null,null,null,null,null,null,null,null,"","-----",0,null,null,null,null,null,null,null,0,0,0,0,0,0,0,0,0,0,0]
[null,null,null,null,null,null,null,"",null,null,null,null,null,null,null,null,"","-----",0,null,null,null,null,null,null,null,0,0,0,0,0,0,0,0,0,0,0]
[null,null,null,null,null,null,null,"",null,null,null,null,null,null,null,null,"","-----",0,null,null,null,null,null,null,null,0,0,0,0,0,0,0,0,0,0,0]
[null,null,null,null,null,null,null,{"$f":"IF(AA273=0,\"\",IF(AA273<$AF$8,\"KK\",\"KG/H\"))","v":""},null,null,null,null,null,null,null,null,{"$f":"IF($AK273=0,\"\",IF($AK273>1,\"\",SUM($AB273:$AI273)))","v":""},"-----",{"$f":"IF(NOT(ISBLANK($T273)),IF($AK273=0,\"\",IF($AK273>1,\"\",SUM($AB273:$AI273))),0)","v":0},null,null,null,null,null,null,null,{"$f":"IF(E273=\"\",0,O$3-E273)","v":0},{"$f":"IF(I273=\"x\",$C$4*3,0)","v":0},{"$f":"IF(J273=\"x\",$C$5*3,0)","v":0},{"$f":"IF(K273=\"x\",$C$6*3,0)","v":0},{"$f":"IF(L273=\"x\",$C$7*3,0)","v":0},{"$f":"IF(M273=\"x\",$C$8*3,0)","v":0},{"$f":"IF(N273=\"x\",$C$9*3,0)","v":0},{"$f":"IF(O273=\"x\",$C$10*3,0)","v":0},{"$f":"IF(P273=\"x\",$C$11*3,0)","v":0},{"$f":"SUM(AB273:AH273)","v":0},{"$f":"COUNTA(I273:P273)","v":0}]
[null,null,null,null,null,null,null,"",null,null,null,null,null,null,null,null,"","-----",0,null,null,null,null,null,null,null,0,0,0,0,0,0,0,0,0,0,0]
[null,null,null,null,null,null,null,"",null,null,null,null,null,null,null,null,"","-----",0,null,null,null,null,null,null,null,0,0,0,0,0,0,0,0,0,0,0]
[null,null,null,null,null,null,null,"",null,null,null,null,null,null,null,null,"","-----",0,null,null,null,null,null,null,null,0,0,0,0,0,0,0,0,0,0,0]
[null,null,null,null,null,null,null,"",null,null,null,null,null,null,null,null,"","-----",0,null,null,null,null,null,null,null,0,0,0,0,0,0,0,0,0,0,0]
[null,null,null,null,null,null,null,"",null,null,null,null,null,null,null,null,"","-----",0,null,null,null,null,null,null,null,0,0,0,0,0,0,0,0,0,0,0]
[null,null,null,null,null,null,null,"",null,null,null,null,null,null,null,null,"","-----",0,null,null,null,null,null,null,null,0,0,0,0,0,0,0,0,0,0,0]
[null,null,null,null,null,null,null,"",null,null,null,null,null,null,null,null,"","-----",0,null,null,null,null,null,null,null,0,0,0,0,0,0,0,0,0,0,0]
[null,null,null,null,null,null,null,"",null,null,null,null,null,null,null,null,"","-----",0,null,null,null,null,null,null,null,0,0,0,0,0,0,0,0,0,0,0]
[null,null,null,null,null,null,null,"",null,null,null,null,null,null,null,null,"","-----",0,null,null,null,null,null,null,null,0,0,0,0,0,0,0,0,0,0,0]
[null,null,null,null,null,null,null,"",null,null,null,null,null,null,null,null,"","-----",0,null,null,null,null,null,null,null,0,0,0,0,0,0,0,0,0,0,0]
[null,null,null,null,null,null,null,"",null,null,null,null,null,null,null,null,"","-----",0,null,null,null,null,null,null,null,0,0,0,0,0,0,0,0,0,0,0]
[null,null,null,null,null,null,null,"",null,null,null,null,null,null,null,null,"","-----",0,null,null,null,null,null,null,null,0,0,0,0,0,0,0,0,0,0,0]
[null,null,null,null,null,null,null,"",null,null,null,null,null,null,null,null,"","-----",0,null,null,null,null,null,null,null,0,0,0,0,0,0,0,0,0,0,0]
[null,null,null,null,null,null,null,"",null,null,null,null,null,null,null,null,"","-----",0,null,null,null,null,null,null,null,0,0,0,0,0,0,0,0,0,0,0]
[null,null,null,null,null,null,null,"",null,null,null,null,null,null,null,null,"","-----",0,null,null,null,null,null,null,null,0,0,0,0,0,0,0,0,0,0,0]
[null,null,null,null,null,null,null,"",null,null,null,null,null,null,null,null,"","-----",0,null,null,null,null,null,null,null,0,0,0,0,0,0,0,0,0,0,0]
[null,null,null,null,null,null,null,"",null,null,null,null,null,null,null,null,"","-----",0,null,null,null,null,null,null,null,0,0,0,0,0,0,0,0,0,0,0]
[null,null,null,null,null,null,null,"",null,null,null,null,null,null,null,null,"","-----",0,null,null,null,null,null,null,null,0,0,0,0,0,0,0,0,0,0,0]
[null,null,null,null,null,null,null,"",null,null,null,null,null,null,null,null,"","-----",0,null,null,null,null,null,null,null,0,0,0,0,0,0,0,0,0,0,0]
[null,null,null,null,null,null,null,"",null,null,null,null,null,null,null,null,"","-----",0,null,null,null,null,null,null,null,0,0,0,0,0,0,0,0,0,0,0]
[null,null,null,null,null,null,null,"",null,null,null,null,null,null,null,null,"","-----",0,null,null,null,null,null,null,null,0,0,0,0,0,0,0,0,0,0,0]
[null,null,null,null,null,null,null,"",null,null,null,null,null,null,null,null,"","-----",0,null,null,null,null,null,null,null,0,0,0,0,0,0,0,0,0,0,0]
[null,null,null,null,null,null,null,"",null,null,null,null,null,null,null,null,"","-----",0,null,null,null,null,null,null,null,0,0,0,0,0,0,0,0,0,0,0]
[null,null,null,null,null,null,null,"",null,null,null,null,null,null,null,null,"","-----",0,null,null,null,null,null,null,null,0,0,0,0,0,0,0,0,0,0,0]
[null,null,null,null,null,null,null,"",null,null,null,null,null,null,null,null,"","-----",0,null,null,null,null,null,null,null,0,0,0,0,0,0,0,0,0,0,0]
[null,null,null,null,null,null,null,"",null,null,null,null,null,null,null,null,"","-----",0,null,null,null,null,null,null,null,0,0,0,0,0,0,0,0,0,0,0]
[null,null,null,null,null,null,null,"",null,null,null,null,null,null,null,null,"","-----",0,null,null,null,null,null,null,null,0,0,0,0,0,0,0,0,0,0,0]
[null,null,null,null,null,null,null,"",null,null,null,null,null,null,null,null,"","-----",0,null,null,null,null,null,null,null,0,0,0,0,0,0,0,0,0,0,0]
[null,null,null,null,null,null,null,"",null,null,null,null,null,null,null,null,"","-----",0,null,null,null,null,null,null,null,0,0,0,0,0,0,0,0,0,0,0]
[null,null,null,null,null,null,null,"",null,null,null,null,null,null,null,null,"","-----",0,null,null,null,null,null,null,null,0,0,0,0,0,0,0,0,0,0,0]
[null,null,null,null,null,null,null,"",null,null,null,null,null,null,null,null,"","-----",0,null,null,null,null,null,null,null,0,0,0,0,0,0,0,0,0,0,0]
[null,null,null,null,null,null,null,"",null,null,null,null,null,null,null,null,"","-----",0,null,null,null,null,null,null,null,0,0,0,0,0,0,0,0,0,0,0]
[null,null,null,null,null,null,null,"",null,null,null,null,null,null,null,null,"","-----",0,null,null,null,null,null,null,null,0,0,0,0,0,0,0,0,0,0,0]
[null,null,null,null,null,null,null,"",null,null,null,null,null,null,null,null,"","-----",0,null,null,null,null,null,null,null,0,0,0,0,0,0,0,0,0,0,0]
[null,null,null,null,null,null,null,"",null,null,null,null,null,null,null,null,"","-----",0,null,null,null,null,null,null,null,0,0,0,0,0,0,0,0,0,0,0]
[null,null,null,null,null,null,null,"",null,null,null,null,null,null,null,null,"","-----",0,null,null,null,null,null,null,null,0,0,0,0,0,0,0,0,0,0,0]
[null,null,null,null,null,null,null,"",null,null,null,null,null,null,null,null,"","-----",0,null,null,null,null,null,null,null,0,0,0,0,0,0,0,0,0,0,0]
[null,null,null,null,null,null,null,"",null,null,null,null,null,null,null,null,"","-----",0,null,null,null,null,null,null,null,0,0,0,0,0,0,0,0,0,0,0]
[null,null,null,null,null,null,null,"",null,null,null,null,null,null,null,null,"","-----",0,null,null,null,null,null,null,null,0,0,0,0,0,0,0,0,0,0,0]
[null,null,null,null,null,null,null,"",null,null,null,null,null,null,null,null,"","-----",0,null,null,null,null,null,null,null,0,0,0,0,0,0,0,0,0,0,0]
[null,null,null,null,null,null,null,"",null,null,null,null,null,null,null,null,"","-----",0,null,null,null,null,null,null,null,0,0,0,0,0,0,0,0,0,0,0]
[null,null,null,null,null,null,null,"",null,null,null,null,null,null,null,null,"","-----",0,null,null,null,null,null,null,null,0,0,0,0,0,0,0,0,0,0,0]
[null,null,null,null,null,null,null,"",null,null,null,null,null,null,null,null,"","-----",0,null,null,null,null,null,null,null,0,0,0,0,0,0,0,0,0,0,0]
[null,null,null,null,null,null,null,"",null,null,null,null,null,null,null,null,"","-----",0,null,null,null,null,null,null,null,0,0,0,0,0,0,0,0,0,0,0]
[null,null,null,null,null,null,null,"",null,null,null,null,null,null,null,null,"","-----",0,null,null,null,null,null,null,null,0,0,0,0,0,0,0,0,0,0,0]
[null,null,null,null,null,null,null,"",null,null,null,null,null,null,null,null,"","-----",0,null,null,null,null,null,null,null,0,0,0,0,0,0,0,0,0,0,0]
[null,null,null,null,null,null,null,"",null,null,null,null,null,null,null,null,"","-----",0,null,null,null,null,null,null,null,0,0,0,0,0,0,0,0,0,0,0]
[null,null,null,null,null,null,null,"",null,null,null,null,null,null,null,null,"","-----",0,null,null,null,null,null,null,null,0,0,0,0,0,0,0,0,0,0,0]
[null,null,null,null,null,null,null,"",null,null,null,null,null,null,null,null,"","-----",0,null,null,null,null,null,null,null,0,0,0,0,0,0,0,0,0,0,0]
[null,null,null,null,null,null,null,"",null,null,null,null,null,null,null,null,"","-----",0,null,null,null,null,null,null,null,0,0,0,0,0,0,0,0,0,0,0]
[null,null,null,null,null,null,null,"",null,null,null,null,null,null,null,null,"","-----",0,null,null,null,null,null,null,null,0,0,0,0,0,0,0,0,0,0,0]
[null,null,null,null,null,null,null,"",null,null,null,null,null,null,null,null,"","-----",0,null,null,null,null,null,null,null,0,0,0,0,0,0,0,0,0,0,0]
[null,null,null,null,null,null,null,"",null,null,null,null,null,null,null,null,"","-----",0,null,null,null,null,null,null,null,0,0,0,0,0,0,0,0,0,0,0]
[null,null,null,null,null,null,null,"",null,null,null,null,null,null,null,null,"","-----",0,null,null,null,null,null,null,null,0,0,0,0,0,0,0,0,0,0,0]
[null,null,null,null,null,null,null,"",null,null,null,null,null,null,null,null,"","-----",0,null,null,null,null,null,null,null,0,0,0,0,0,0,0,0,0,0,0]
[null,null,null,null,null,null,null,"",null,null,null,null,null,null,null,null,"","-----",0,null,null,null,null,null,null,null,0,0,0,0,0,0,0,0,0,0,0]
[null,null,null,null,null,null,null,"",null,null,null,null,null,null,null,null,"","-----",0,null,null,null,null,null,null,null,0,0,0,0,0,0,0,0,0,0,0]
[null,null,null,null,null,null,null,"",null,null,null,null,null,null,null,null,"","-----",0,null,null,null,null,null,null,null,0,0,0,0,0,0,0,0,0,0,0]
[null,null,null,null,null,null,null,"",null,null,null,null,null,null,null,null,"","-----",0,null,null,null,null,null,null,null,0,0,0,0,0,0,0,0,0,0,0]
[null,null,null,null,null,null,null,"",null,null,null,null,null,null,null,null,"","-----",0,null,null,null,null,null,null,null,0,0,0,0,0,0,0,0,0,0,0]
[null,null,null,null,null,null,null,"",null,null,null,null,null,null,null,null,"","-----",0,null,null,null,null,null,null,null,0,0,0,0,0,0,0,0,0,0,0]
[null,null,null,null,null,null,null,"",null,null,null,null,null,null,null,null,"","-----",0,null,null,null,null,null,null,null,0,0,0,0,0,0,0,0,0,0,0]
[null,null,null,null,null,null,null,"",null,null,null,null,null,null,null,null,"","-----",0,null,null,null,null,null,null,null,0,0,0,0,0,0,0,0,0,0,0]
[null,null,null,null,null,null,null,{"$f":"IF(AA337=0,\"\",IF(AA337<$AF$8,\"KK\",\"KG/H\"))","v":""},null,null,null,null,null,null,null,null,{"$f":"IF($AK337=0,\"\",IF($AK337>1,\"\",SUM($AB337:$AI337)))","v":""},"-----",{"$f":"IF(NOT(ISBLANK($T337)),IF($AK337=0,\"\",IF($AK337>1,\"\",SUM($AB337:$AI337))),0)","v":0},null,null,null,null,null,null,null,{"$f":"IF(E337=\"\",0,O$3-E337)","v":0},{"$f":"IF(I337=\"x\",$C$4*3,0)","v":0},{"$f":"IF(J337=\"x\",$C$5*3,0)","v":0},{"$f":"IF(K337=\"x\",$C$6*3,0)","v":0},{"$f":"IF(L337=\"x\",$C$7*3,0)","v":0},{"$f":"IF(M337=\"x\",$C$8*3,0)","v":0},{"$f":"IF(N337=\"x\",$C$9*3,0)","v":0},{"$f":"IF(O337=\"x\",$C$10*3,0)","v":0},{"$f":"IF(P337=\"x\",$C$11*3,0)","v":0},{"$f":"SUM(AB337:AH337)","v":0},{"$f":"COUNTA(I337:P337)","v":0}]
[null,null,null,null,null,null,null,"",null,null,null,null,null,null,null,null,"","-----",0,null,null,null,null,null,null,null,0,0,0,0,0,0,0,0,0,0,0]
[null,null,null,null,null,null,null,"",null,null,null,null,null,null,null,null,"","-----",0,null,null,null,null,null,null,null,0,0,0,0,0,0,0,0,0,0,0]
[null,null,null,null,null,null,null,"",null,null,null,null,null,null,null,null,"","-----",0,null,null,null,null,null,null,null,0,0,0,0,0,0,0,0,0,0,0]
[null,null,null,null,null,null,null,"",null,null,null,null,null,null,null,null,"","-----",0,null,null,null,null,null,null,null,0,0,0,0,0,0,0,0,0,0,0]
[null,null,null,null,null,null,null,"",null,null,null,null,null,null,null,null,"","-----",0,null,null,null,null,null,null,null,0,0,0,0,0,0,0,0,0,0,0]
[null,null,null,null,null,null,null,"",null,null,null,null,null,null,null,null,"","-----",0,null,null,null,null,null,null,null,0,0,0,0,0,0,0,0,0,0,0]
[null,null,null,null,null,null,null,"",null,null,null,null,null,null,null,null,"","-----",0,null,null,null,null,null,null,null,0,0,0,0,0,0,0,0,0,0,0]
[null,null,null,null,null,null,null,"",null,null,null,null,null,null,null,null,"","-----",0,null,null,null,null,null,null,null,0,0,0,0,0,0,0,0,0,0,0]
[null,null,null,null,null,null,null,"",null,null,null,null,null,null,null,null,"","-----",0,null,null,null,null,null,null,null,0,0,0,0,0,0,0,0,0,0,0]
[null,null,null,null,null,null,null,"",null,null,null,null,null,null,null,null,"","-----",0,null,null,null,null,null,null,null,0,0,0,0,0,0,0,0,0,0,0]
[null,null,null,null,null,null,null,"",null,null,null,null,null,null,null,null,"","-----",0,null,null,null,null,null,null,null,0,0,0,0,0,0,0,0,0,0,0]
[null,null,null,null,null,null,null,"",null,null,null,null,null,null,null,null,"","-----",0,null,null,null,null,null,null,null,0,0,0,0,0,0,0,0,0,0,0]
[null,null,null,null,null,null,null,"",null,null,null,null,null,null,null,null,"","-----",0,null,null,null,null,null,null,null,0,0,0,0,0,0,0,0,0,0,0]
[null,null,null,null,null,null,null,"",null,null,null,null,null,null,null,null,"","-----",0,null,null,null,null,null,null,null,0,0,0,0,0,0,0,0,0,0,0]
[null,null,null,null,null,null,null,"",null,null,null,null,null,null,null,null,"","-----",0,null,null,null,null,null,null,null,0,0,0,0,0,0,0,0,0,0,0]
[null,null,null,null,null,null,null,"",null,null,null,null,null,null,null,null,"","-----",0,null,null,null,null,null,null,null,0,0,0,0,0,0,0,0,0,0,0]
[null,null,null,null,null,null,null,"",null,null,null,null,null,null,null,null,"","-----",0,null,null,null,null,null,null,null,0,0,0,0,0,0,0,0,0,0,0]
[null,null,null,null,null,null,null,"",null,null,null,null,null,null,null,null,"","-----",0,null,null,null,null,null,null,null,0,0,0,0,0,0,0,0,0,0,0]
[null,null,null,null,null,null,null,"",null,null,null,null,null,null,null,null,"","-----",0,null,null,null,null,null,null,null,0,0,0,0,0,0,0,0,0,0,0]
[null,null,null,null,null,null,null,"",null,null,null,null,null,null,null,null,"","-----",0,null,null,null,null,null,null,null,0,0,0,0,0,0,0,0,0,0,0]
[null,null,null,null,null,null,null,"",null,null,null,null,null,null,null,null,"","-----",0,null,null,null,null,null,null,null,0,0,0,0,0,0,0,0,0,0,0]
[null,null,null,null,null,null,null,"",null,null,null,null,null,null,null,null,"","-----",0,null,null,null,null,null,null,null,0,0,0,0,0,0,0,0,0,0,0]
[null,null,null,null,null,null,null,"",null,null,null,null,null,null,null,null,"","-----",0,null,null,null,null,null,null,null,0,0,0,0,0,0,0,0,0,0,0]
[null,null,null,null,null,null,null,"",null,null,null,null,null,null,null,null,"","-----",0,null,null,null,null,null,null,null,0,0,0,0,0,0,0,0,0,0,0]
[null,null,null,null,null,null,null,"",null,null,null,null,null,null,null,null,"","-----",0,null,null,null,null,null,null,null,0,0,0,0,0,0,0,0,0,0,0]
[null,null,null,null,null,null,null,"",null,null,null,null,null,null,null,null,"","-----",0,null,null,null,null,null,null,null,0,0,0,0,0,0,0,0,0,0,0]
[null,null,null,null,null,null,null,"",null,null,null,null,null,null,null,null,"","-----",0,null,null,null,null,null,null,null,0,0,0,0,0,0,0,0,0,0,0]
[null,null,null,null,null,null,null,"",null,null,null,null,null,null,null,null,"","-----",0,null,null,null,null,null,null,null,0,0,0,0,0,0,0,0,0,0,0]
[null,null,null,null,null,null,null,"",null,null,null,null,null,null,null,null,"","-----",0,null,null,null,null,null,null,null,0,0,0,0,0,0,0,0,0,0,0]
[null,null,null,null,null,null,null,"",null,null,null,null,null,null,null,null,"","-----",0,null,null,null,null,null,null,null,0,0,0,0,0,0,0,0,0,0,0]
[null,null,null,null,null,null,null,"",null,null,null,null,null,null,null,null,"","-----",0,null,null,null,null,null,null,null,0,0,0,0,0,0,0,0,0,0,0]
[null,null,null,null,null,null,null,"",null,null,null,null,null,null,null,null,"","-----",0,null,null,null,null,null,null,null,0,0,0,0,0,0,0,0,0,0,0]
[null,null,null,null,null,null,null,"",null,null,null,null,null,null,null,null,"","-----",0,null,null,null,null,null,null,null,0,0,0,0,0,0,0,0,0,0,0]
[null,null,null,null,null,null,null,"",null,null,null,null,null,null,null,null,"","-----",0,null,null,null,null,null,null,null,0,0,0,0,0,0,0,0,0,0,0]
[null,null,null,null,null,null,null,"",null,null,null,null,null,null,null,null,"","-----",0,null,null,null,null,null,null,null,0,0,0,0,0,0,0,0,0,0,0]
[null,null,null,null,null,null,null,"",null,null,null,null,null,null,null,null,"","-----",0,null,null,null,null,null,null,null,0,0,0,0,0,0,0,0,0,0,0]
[null,null,null,null,null,null,null,"",null,null,null,null,null,null,null,null,"","-----",0,null,null,null,null,null,null,null,0,0,0,0,0,0,0,0,0,0,0]
[null,null,null,null,null,null,null,"",null,null,null,null,null,null,null,null,"","-----",0,null,null,null,null,null,null,null,0,0,0,0,0,0,0,0,0,0,0]
[null,null,null,null,null,null,null,"",null,null,null,null,null,null,null,null,"","-----",0,null,null,null,null,null,null,null,0,0,0,0,0,0,0,0,0,0,0]
[null,null,null,null,null,null,null,"",null,null,null,null,null,null,null,null,"","-----",0,null,null,null,null,null,null,null,0,0,0,0,0,0,0,0,0,0,0]
[null,null,null,null,null,null,null,"",null,null,null,null,null,null,null,null,"","-----",0,null,null,null,null,null,null,null,0,0,0,0,0,0,0,0,0,0,0]
[null,null,null,null,null,null,null,"",null,null,null,null,null,null,null,null,"","-----",0,null,null,null,null,null,null,null,0,0,0,0,0,0,0,0,0,0,0]
[null,null,null,null,null,null,null,"",null,null,null,null,null,null,null,null,"","-----",0,null,null,null,null,null,null,null,0,0,0,0,0,0,0,0,0,0,0]
[null,null,null,null,null,null,null,"",null,null,null,null,null,null,null,null,"","-----",0,null,null,null,null,null,null,null,0,0,0,0,0,0,0,0,0,0,0]
[null,null,null,null,null,null,null,"",null,null,null,null,null,null,null,null,"","-----",0,null,null,null,null,null,null,null,0,0,0,0,0,0,0,0,0,0,0]
[null,null,null,null,null,null,null,"",null,null,null,null,null,null,null,null,"","-----",0,null,null,null,null,null,null,null,0,0,0,0,0,0,0,0,0,0,0]
[null,null,null,null,null,null,null,"",null,null,null,null,null,null,null,null,"","-----",0,null,null,null,null,null,null,null,0,0,0,0,0,0,0,0,0,0,0]
[null,null,null,null,null,null,null,"",null,null,null,null,null,null,null,null,"","-----",0,null,null,null,null,null,null,null,0,0,0,0,0,0,0,0,0,0,0]
[null,null,null,null,null,null,null,"",null,null,null,null,null,null,null,null,"","-----",0,null,null,null,null,null,null,null,0,0,0,0,0,0,0,0,0,0,0]
[null,null,null,null,null,null,null,"",null,null,null,null,null,null,null,null,"","-----",0,null,null,null,null,null,null,null,0,0,0,0,0,0,0,0,0,0,0]
[null,null,null,null,null,null,null,"",null,null,null,null,null,null,null,null,"","-----",0,null,null,null,null,null,null,null,0,0,0,0,0,0,0,0,0,0,0]
[null,null,null,null,null,null,null,"",null,null,null,null,null,null,null,null,"","-----",0,null,null,null,null,null,null,null,0,0,0,0,0,0,0,0,0,0,0]
[null,null,null,null,null,null,null,"",null,null,null,null,null,null,null,null,"","-----",0,null,null,null,null,null,null,null,0,0,0,0,0,0,0,0,0,0,0]
[null,null,null,null,null,null,null,"",null,null,null,null,null,null,null,null,"","-----",0,null,null,null,null,null,null,null,0,0,0,0,0,0,0,0,0,0,0]
[null,null,null,null,null,null,null,"",null,null,null,null,null,null,null,null,"","-----",0,null,null,null,null,null,null,null,0,0,0,0,0,0,0,0,0,0,0]
[null,null,null,null,null,null,null,"",null,null,null,null,null,null,null,null,"","-----",0,null,null,null,null,null,null,null,0,0,0,0,0,0,0,0,0,0,0]
[null,null,null,null,null,null,null,"",null,null,null,null,null,null,null,null,"","-----",0,null,null,null,null,null,null,null,0,0,0,0,0,0,0,0,0,0,0]
[null,null,null,null,null,null,null,"",null,null,null,null,null,null,null,null,"","-----",0,null,null,null,null,null,null,null,0,0,0,0,0,0,0,0,0,0,0]
[null,null,null,null,null,null,null,"",null,null,null,null,null,null,null,null,"","-----",0,null,null,null,null,null,null,null,0,0,0,0,0,0,0,0,0,0,0]
[null,null,null,null,null,null,null,"",null,null,null,null,null,null,null,null,"","-----",0,null,null,null,null,null,null,null,0,0,0,0,0,0,0,0,0,0,0]
[null,null,null,null,null,null,null,"",null,null,null,null,null,null,null,null,"","-----",0,null,null,null,null,null,null,null,0,0,0,0,0,0,0,0,0,0,0]
[null,null,null,null,null,null,null,"",null,null,null,null,null,null,null,null,"","-----",0,null,null,null,null,null,null,null,0,0,0,0,0,0,0,0,0,0,0]
[null,null,null,null,null,null,null,"",null,null,null,null,null,null,null,null,"","-----",0,null,null,null,null,null,null,null,0,0,0,0,0,0,0,0,0,0,0]
[null,null,null,null,null,null,null,{"$f":"IF(AA401=0,\"\",IF(AA401<$AF$8,\"KK\",\"KG/H\"))","v":""},null,null,null,null,null,null,null,null,{"$f":"IF($AK401=0,\"\",IF($AK401>1,\"\",SUM($AB401:$AI401)))","v":""},"-----",{"$f":"IF(NOT(ISBLANK($T401)),IF($AK401=0,\"\",IF($AK401>1,\"\",SUM($AB401:$AI401))),0)","v":0},null,null,null,null,null,null,null,{"$f":"IF(E401=\"\",0,O$3-E401)","v":0},{"$f":"IF(I401=\"x\",$C$4*3,0)","v":0},{"$f":"IF(J401=\"x\",$C$5*3,0)","v":0},{"$f":"IF(K401=\"x\",$C$6*3,0)","v":0},{"$f":"IF(L401=\"x\",$C$7*3,0)","v":0},{"$f":"IF(M401=\"x\",$C$8*3,0)","v":0},{"$f":"IF(N401=\"x\",$C$9*3,0)","v":0},{"$f":"IF(O401=\"x\",$C$10*3,0)","v":0},{"$f":"IF(P401=\"x\",$C$11*3,0)","v":0},{"$f":"SUM(AB401:AH401)","v":0},{"$f":"COUNTA(I401:P401)","v":0}]
[null,null,null,null,null,null,null,"",null,null,null,null,null,null,null,null,"","-----",0,null,null,null,null,null,null,null,0,0,0,0,0,0,0,0,0,0,0]
[null,null,null,null,null,null,null,"",null,null,null,null,null,null,null,null,"","-----",0,null,null,null,null,null,null,null,0,0,0,0,0,0,0,0,0,0,0]
[null,null,null,null,null,null,null,"",null,null,null,null,null,null,null,null,"","-----",0,null,null,null,null,null,null,null,0,0,0,0,0,0,0,0,0,0,0]
[null,null,null,null,null,null,null,"",null,null,null,null,null,null,null,null,"","-----",0,null,null,null,null,null,null,null,0,0,0,0,0,0,0,0,0,0,0]
[null,null,null,null,null,null,null,"",null,null,null,null,null,null,null,null,"","-----",0,null,null,null,null,null,null,null,0,0,0,0,0,0,0,0,0,0,0]
[null,null,null,null,null,null,null,"",null,null,null,null,null,null,null,null,"","-----",0,null,null,null,null,null,null,null,0,0,0,0,0,0,0,0,0,0,0]
[null,null,null,null,null,null,null,"",null,null,null,null,null,null,null,null,"","-----",0,null,null,null,null,null,null,null,0,0,0,0,0,0,0,0,0,0,0]
[null,null,null,null,null,null,null,"",null,null,null,null,null,null,null,null,"","-----",0,null,null,null,null,null,null,null,0,0,0,0,0,0,0,0,0,0,0]
[null,null,null,null,null,null,null,"",null,null,null,null,null,null,null,null,"","-----",0,null,null,null,null,null,null,null,0,0,0,0,0,0,0,0,0,0,0]
[null,null,null,null,null,null,null,"",null,null,null,null,null,null,null,null,"","-----",0,null,null,null,null,null,null,null,0,0,0,0,0,0,0,0,0,0,0]
[null,null,null,null,null,null,null,"",null,null,null,null,null,null,null,null,"","-----",0,null,null,null,null,null,null,null,0,0,0,0,0,0,0,0,0,0,0]
[null,null,null,null,null,null,null,"",null,null,null,null,null,null,null,null,"","-----",0,null,null,null,null,null,null,null,0,0,0,0,0,0,0,0,0,0,0]
[null,null,null,null,null,null,null,"",null,null,null,null,null,null,null,null,"","-----",0,null,null,null,null,null,null,null,0,0,0,0,0,0,0,0,0,0,0]
[null,null,null,null,null,null,null,"",null,null,null,null,null,null,null,null,"","-----",0,null,null,null,null,null,null,null,0,0,0,0,0,0,0,0,0,0,0]
[null,null,null,null,null,null,null,"",null,null,null,null,null,null,null,null,"","-----",0,null,null,null,null,null,null,null,0,0,0,0,0,0,0,0,0,0,0]
[null,null,null,null,null,null,null,"",null,null,null,null,null,null,null,null,"","-----",0,null,null,null,null,null,null,null,0,0,0,0,0,0,0,0,0,0,0]
[null,null,null,null,null,null,null,"",null,null,null,null,null,null,null,null,"","-----",0,null,null,null,null,null,null,null,0,0,0,0,0,0,0,0,0,0,0]
[null,null,null,null,null,null,null,"",null,null,null,null,null,null,null,null,"","-----",0,null,null,null,null,null,null,null,0,0,0,0,0,0,0,0,0,0,0]
[null,null,null,null,null,null,null,"",null,null,null,null,null,null,null,null,"","-----",0,null,null,null,null,null,null,null,0,0,0,0,0,0,0,0,0,0,0]
[null,null,null,null,null,null,null,"",null,null,null,null,null,null,null,null,"","-----",0,null,null,null,null,null,null,null,0,0,0,0,0,0,0,0,0,0,0]
[null,null,null,null,null,null,null,"",null,null,null,null,null,null,null,null,"","-----",0,null,null,null,null,null,null,null,0,0,0,0,0,0,0,0,0,0,0]
[null,null,null,null,null,null,null,"",null,null,null,null,null,null,null,null,"","-----",0,null,null,null,null,null,null,null,0,0,0,0,0,0,0,0,0,0,0]
[null,null,null,null,null,null,null,"",null,null,null,null,null,null,null,null,"","-----",0,null,null,null,null,null,null,null,0,0,0,0,0,0,0,0,0,0,0]
[null,null,null,null,null,null,null,"",null,null,null,null,null,null,null,null,"","-----",0,null,null,null,null,null,null,null,0,0,0,0,0,0,0,0,0,0,0]
[null,null,null,null,null,null,null,"",null,null,null,null,null,null,null,null,"","-----",0,null,null,null,null,null,null,null,0,0,0,0,0,0,0,0,0,0,0]
[null,null,null,null,null,null,null,"",null,null,null,null,null,null,null,null,"","-----",0,null,null,null,null,null,null,null,0,0,0,0,0,0,0,0,0,0,0]
[null,null,null,null,null,null,null,"",null,null,null,null,null,null,null,null,"","-----",0,null,null,null,null,null,null,null,0,0,0,0,0,0,0,0,0,0,0]
[null,null,null,null,null,null,null,"",null,null,null,null,null,null,null,null,"","-----",0,null,null,null,null,null,null,null,0,0,0,0,0,0,0,0,0,0,0]
[null,null,null,null,null,null,null,"",null,null,null,null,null,null,null,null,"","-----",0,null,null,null,null,null,null,null,0,0,0,0,0,0,0,0,0,0,0]
[null,null,null,null,null,null,null,"",null,null,null,null,null,null,null,null,"","-----",0,null,null,null,null,null,null,null,0,0,0,0,0,0,0,0,0,0,0]
[null,null,null,null,null,null,null,"",null,null,null,null,null,null,null,null,"","-----",0,null,null,null,null,null,null,null,0,0,0,0,0,0,0,0,0,0,0]
[null,null,null,null,null,null,null,"",null,null,null,null,null,null,null,null,"","-----",0,null,null,null,null,null,null,null,0,0,0,0,0,0,0,0,0,0,0]
[null,null,null,null,null,null,null,"",null,null,null,null,null,null,null,null,"","-----",0,null,null,null,null,null,null,null,0,0,0,0,0,0,0,0,0,0,0]
[null,null,null,null,null,null,null,"",null,null,null,null,null,null,null,null,"","-----",0,null,null,null,null,null,null,null,0,0,0,0,0,0,0,0,0,0,0]
[null,null,null,null,null,null,null,"",null,null,null,null,null,null,null,null,"","-----",0,null,null,null,null,null,null,null,0,0,0,0,0,0,0,0,0,0,0]
[null,null,null,null,null,null,null,"",null,null,null,null,null,null,null,null,"","-----",0,null,null,null,null,null,null,null,0,0,0,0,0,0,0,0,0,0,0]
[null,null,null,null,null,null,null,"",null,null,null,null,null,null,null,null,"","-----",0,null,null,null,null,null,null,null,0,0,0,0,0,0,0,0,0,0,0]
[null,null,null,null,null,null,null,"",null,null,null,null,null,null,null,null,"","-----",0,null,null,null,null,null,null,null,0,0,0,0,0,0,0,0,0,0,0]
[null,null,null,null,null,null,null,"",null,null,null,null,null,null,null,null,"","-----",0,null,null,null,null,null,null,null,0,0,0,0,0,0,0,0,0,0,0]
[null,null,null,null,null,null,null,"",null,null,null,null,null,null,null,null,"","-----",0,null,null,null,null,null,null,null,0,0,0,0,0,0,0,0,0,0,0]
[null,null,null,null,null,null,null,"",null,null,null,null,null,null,null,null,"","-----",0,null,null,null,null,null,null,null,0,0,0,0,0,0,0,0,0,0,0]
[null,null,null,null,null,null,null,"",null,null,null,null,null,null,null,null,"","-----",0,null,null,null,null,null,null,null,0,0,0,0,0,0,0,0,0,0,0]
[null,null,null,null,null,null,null,"",null,null,null,null,null,null,null,null,"","-----",0,null,null,null,null,null,null,null,0,0,0,0,0,0,0,0,0,0,0]
[null,null,null,null,null,null,null,"",null,null,null,null,null,null,null,null,"","-----",0,null,null,null,null,null,null,null,0,0,0,0,0,0,0,0,0,0,0]
[null,null,null,null,null,null,null,"",null,null,null,null,null,null,null,null,"","-----",0,null,null,null,null,null,null,null,0,0,0,0,0,0,0,0,0,0,0]
[null,null,null,null,null,null,null,"",null,null,null,null,null,null,null,null,"","-----",0,null,null,null,null,null,null,null,0,0,0,0,0,0,0,0,0,0,0]
[null,null,null,null,null,null,null,"",null,null,null,null,null,null,null,null,"","-----",0,null,null,null,null,null,null,null,0,0,0,0,0,0,0,0,0,0,0]
[null,null,null,null,null,null,null,"",null,null,null,null,null,null,null,null,"","-----",0,null,null,null,null,null,null,null,0,0,0,0,0,0,0,0,0,0,0]
[null,null,null,null,null,null,null,"",null,null,null,null,null,null,null,null,"","-----",0,null,null,null,null,null,null,null,0,0,0,0,0,0,0,0,0,0,0]
[null,null,null,null,null,null,null,"",null,null,null,null,null,null,null,null,"","-----",0,null,null,null,null,null,null,null,0,0,0,0,0,0,0,0,0,0,0]
[null,null,null,null,null,null,null,"",null,null,null,null,null,null,null,null,"","-----",0,null,null,null,null,null,null,null,0,0,0,0,0,0,0,0,0,0,0]
[null,null,null,null,null,null,null,"",null,null,null,null,null,null,null,null,"","-----",0,null,null,null,null,null,null,null,0,0,0,0,0,0,0,0,0,0,0]
[null,null,null,null,null,null,null,"",null,null,null,null,null,null,null,null,"","-----",0,null,null,null,null,null,null,null,0,0,0,0,0,0,0,0,0,0,0]
[null,null,null,null,null,null,null,"",null,null,null,null,null,null,null,null,"","-----",0,null,null,null,null,null,null,null,0,0,0,0,0,0,0,0,0,0,0]
[null,null,null,null,null,null,null,"",null,null,null,null,null,null,null,null,"","-----",0,null,null,null,null,null,null,null,0,0,0,0,0,0,0,0,0,0,0]
[null,null,null,null,null,null,null,"",null,null,null,null,null,null,null,null,"","-----",0,null,null,null,null,null,null,null,0,0,0,0,0,0,0,0,0,0,0]
[null,null,null,null,null,null,null,"",null,null,null,null,null,null,null,null,"","-----",0,null,null,null,null,null,null,null,0,0,0,0,0,0,0,0,0,0,0]
[null,null,null,null,null,null,null,"",null,null,null,null,null,null,null,null,"","-----",0,null,null,null,null,null,null,null,0,0,0,0,0,0,0,0,0,0,0]
[null,null,null,null,null,null,null,"",null,null,null,null,null,null,null,null,"","-----",0,null,null,null,null,null,null,null,0,0,0,0,0,0,0,0,0,0,0]
[null,null,null,null,null,null,null,"",null,null,null,null,null,null,null,null,"","-----",0,null,null,null,null,null,null,null,0,0,0,0,0,0,0,0,0,0,0]
[null,null,null,null,null,null,null,"",null,null,null,null,null,null,null,null,"","-----",0,null,null,null,null,null,null,null,0,0,0,0,0,0,0,0,0,0,0]
[null,null,null,null,null,null,null,"",null,null,null,null,null,null,null,null,"","-----",0,null,null,null,null,null,null,null,0,0,0,0,0,0,0,0,0,0,0]
[null,null,null,null,null,null,null,"",null,null,null,null,null,null,null,null,"","-----",0,null,null,null,null,null,null,null,0,0,0,0,0,0,0,0,0,0,0]
[null,null,null,null,null,null,null,{"$f":"IF(AA465=0,\"\",IF(AA465<$AF$8,\"KK\",\"KG/H\"))","v":""},null,null,null,null,null,null,null,null,{"$f":"IF($AK465=0,\"\",IF($AK465>1,\"\",SUM($AB465:$AI465)))","v":""},"-----",{"$f":"IF(NOT(ISBLANK($T465)),IF($AK465=0,\"\",IF($AK465>1,\"\",SUM($AB465:$AI465))),0)","v":0},null,null,null,null,null,null,null,{"$f":"IF(E465=\"\",0,O$3-E465)","v":0},{"$f":"IF(I465=\"x\",$C$4*3,0)","v":0},{"$f":"IF(J465=\"x\",$C$5*3,0)","v":0},{"$f":"IF(K465=\"x\",$C$6*3,0)","v":0},{"$f":"IF(L465=\"x\",$C$7*3,0)","v":0},{"$f":"IF(M465=\"x\",$C$8*3,0)","v":0},{"$f":"IF(N465=\"x\",$C$9*3,0)","v":0},{"$f":"IF(O465=\"x\",$C$10*3,0)","v":0},{"$f":"IF(P465=\"x\",$C$11*3,0)","v":0},{"$f":"SUM(AB465:AH465)","v":0},{"$f":"COUNTA(I465:P465)","v":0}]
[null,null,null,null,null,null,null,"",null,null,null,null,null,null,null,null,"","-----",0,null,null,null,null,null,null,null,0,0,0,0,0,0,0,0,0,0,0]
[null,null,null,null,null,null,null,"",null,null,null,null,null,null,null,null,"","-----",0,null,null,null,null,null,null,null,0,0,0,0,0,0,0,0,0,0,0]
[null,null,null,null,null,null,null,"",null,null,null,null,null,null,null,null,"","-----",0,null,null,null,null,null,null,null,0,0,0,0,0,0,0,0,0,0,0]
[null,null,null,null,null,null,null,"",null,null,null,null,null,null,null,null,"","-----",0,null,null,null,null,null,null,null,0,0,0,0,0,0,0,0,0,0,0]
[null,null,null,null,null,null,null,"",null,null,null,null,null,null,null,null,"","-----",0,null,null,null,null,null,null,null,0,0,0,0,0,0,0,0,0,0,0]
[null,null,null,null,null,null,null,"",null,null,null,null,null,null,null,null,"","-----",0,null,null,null,null,null,null,null,0,0,0,0,0,0,0,0,0,0,0]
[null,null,null,null,null,null,null,"",null,null,null,null,null,null,null,null,"","-----",0,null,null,null,null,null,null,null,0,0,0,0,0,0,0,0,0,0,0]
[null,null,null,null,null,null,null,"",null,null,null,null,null,null,null,null,"","-----",0,null,null,null,null,null,null,null,0,0,0,0,0,0,0,0,0,0,0]
[null,null,null,null,null,null,null,"",null,null,null,null,null,null,null,null,"","-----",0,null,null,null,null,null,null,null,0,0,0,0,0,0,0,0,0,0,0]
[null,null,null,null,null,null,null,"",null,null,null,null,null,null,null,null,"","-----",0,null,null,null,null,null,null,null,0,0,0,0,0,0,0,0,0,0,0]
[null,null,null,null,null,null,null,"",null,null,null,null,null,null,null,null,"","-----",0,null,null,null,null,null,null,null,0,0,0,0,0,0,0,0,0,0,0]
[null,null,null,null,null,null,null,"",null,null,null,null,null,null,null,null,"","-----",0,null,null,null,null,null,null,null,0,0,0,0,0,0,0,0,0,0,0]
[null,null,null,null,null,null,null,"",null,null,null,null,null,null,null,null,"","-----",0,null,null,null,null,null,null,null,0,0,0,0,0,0,0,0,0,0,0]
[null,null,null,null,null,null,null,"",null,null,null,null,null,null,null,null,"","-----",0,null,null,null,null,null,null,null,0,0,0,0,0,0,0,0,0,0,0]
[null,null,null,null,null,null,null,"",null,null,null,null,null,null,null,null,"","-----",0,null,null,null,null,null,null,null,0,0,0,0,0,0,0,0,0,0,0]
[null,null,null,null,null,null,null,"",null,null,null,null,null,null,null,null,"","-----",0,null,null,null,null,null,null,null,0,0,0,0,0,0,0,0,0,0,0]
[null,null,null,null,null,null,null,"",null,null,null,null,null,null,null,null,"","-----",0,null,null,null,null,null,null,null,0,0,0,0,0,0,0,0,0,0,0]
[null,null,null,null,null,null,null,"",null,null,null,null,null,null,null,null,"","-----",0,null,null,null,null,null,null,null,0,0,0,0,0,0,0,0,0,0,0]
[null,null,null,null,null,null,null,"",null,null,null,null,null,null,null,null,"","-----",0,null,null,null,null,null,null,null,0,0,0,0,0,0,0,0,0,0,0]
[null,null,null,null,null,null,null,"",null,null,null,null,null,null,null,null,"","-----",0,null,null,null,null,null,null,null,0,0,0,0,0,0,0,0,0,0,0]
[null,null,null,null,null,null,null,"",null,null,null,null,null,null,null,null,"","-----",0,null,null,null,null,null,null,null,0,0,0,0,0,0,0,0,0,0,0]
[null,null,null,null,null,null,null,"",null,null,null,null,null,null,null,null,"","-----",0,null,null,null,null,null,null,null,0,0,0,0,0,0,0,0,0,0,0]
[null,null,null,null,null,null,null,"",null,null,null,null,null,null,null,null,"","-----",0,null,null,null,null,null,null,null,0,0,0,0,0,0,0,0,0,0,0]
[null,null,null,null,null,null,null,"",null,null,null,null,null,null,null,null,"","-----",0,null,null,null,null,null,null,null,0,0,0,0,0,0,0,0,0,0,0]
[null,null,null,null,null,null,null,"",null,null,null,null,null,null,null,null,"","-----",0,null,null,null,null,null,null,null,0,0,0,0,0,0,0,0,0,0,0]
[null,null,null,null,null,null,null,"",null,null,null,null,null,null,null,null,"","-----",0,null,null,null,null,null,null,null,0,0,0,0,0,0,0,0,0,0,0]
[null,null,null,null,null,null,null,"",null,null,null,null,null,null,null,null,"","-----",0,null,null,null,null,null,null,null,0,0,0,0,0,0,0,0,0,0,0]
[null,null,null,null,null,null,null,"",null,null,null,null,null,null,null,null,"","-----",0,null,null,null,null,null,null,null,0,0,0,0,0,0,0,0,0,0,0]
[null,null,null,null,null,null,null,"",null,null,null,null,null,null,null,null,"","-----",0,null,null,null,null,null,null,null,0,0,0,0,0,0,0,0,0,0,0]
[null,null,null,null,null,null,null,"",null,null,null,null,null,null,null,null,"","-----",0,null,null,null,null,null,null,null,0,0,0,0,0,0,0,0,0,0,0]
[null,null,null,null,null,null,null,"",null,null,null,null,null,null,null,null,"","-----",0,null,null,null,null,null,null,null,0,0,0,0,0,0,0,0,0,0,0]
[null,null,null,null,null,null,null,"",null,null,null,null,null,null,null,null,"","-----",0,null,null,null,null,null,null,null,0,0,0,0,0,0,0,0,0,0,0]
[null,null,null,null,null,null,null,"",null,null,null,null,null,null,null,null,"","-----",0,null,null,null,null,null,null,null,0,0,0,0,0,0,0,0,0,0,0]
[null,null,null,null,null,null,null,"",null,null,null,null,null,null,null,null,"","-----",0,null,null,null,null,null,null,null,0,0,0,0,0,0,0,0,0,0,0]
[null,null,null,null,null,null,null,"",null,null,null,null,null,null,null,null,"","-----",0,null,null,null,null,null,null,null,0,0,0,0,0,0,0,0,0,0,0]

{"sheet":"Ausfüllhinweise","index":1,"n_rows":50,"n_cols":3,"rows_kept":50,"cut":false,"hidden":false,"merged":[[0,0,0,10],[1,0,1,10],[2,0,3,0],[2,1,3,1],[2,2,2,10],[3,2,3,10],[4,0,4,10],[5,0,5,10],[6,0,6,10],[7,2,7,10],[7,0,8,0],[7,1,8,1],[8,2,8,10],[9,0,9,10],[10,0,13,0],[10,1,13,1],[10,2,10,10],[11,2,11,10],[12,2,12,10],[13,2,13,10],[14,0,14,10],[15,0,17,0],[15,1,17,1],[15,2,15,10],[16,2,16,10],[17,2,17,10],[22,0,24,9],[26,0,26,9],[18,0,18,10],[19,0,19,10],[20,0,20,10],[21,0,21,10],[29,0,29,9],[30,0,30,9],[31,0,31,9],[32,0,32,9],[27,0,27,9],[28,0,28,9]]}
["Ausfüllhinweise zum Antrag auf Kostenausgleich"]
[]
["Stichtag","Feld R/3","Dieses Feld ist ein Listenfeld, durch direktes anklicken öffnet sich"]
[null,null,"das Listenfeld. Der entsprechende Stichtag kann hier ausgewählt werden."]
[]
[]
[]
["Geburtsdatum","Spalte E","Das Datum des Stichtages ist gekoppelt an das Geburtsdatum. Im Hintergrund"]
[null,null,"wird in Abhängigkeit mit dem Stichtag berechnet, zu welcher Altersgruppe (AG) das Kind gehört."]
[]
["Altersgruppe (AG)","Spalte H","Hier wird die Altersgruppe in Abhängigkeit des Stichtages zum Geburtsdatum angezeigt,"]
[null,null,"welcher das Kind angehören müsste."]
[null,null,"Besonderheiten ergeben sich beim Übergang von Kindergarten zu Hort. Hierfür wurde"]
[null,null,"das Listenfeld \"Rückstellung oder vorzeitige Einschulung\" eingerichtet."]
[]
["Rückstellung oder vorzeitigen Einschulung","Spalte R","Dieses Listenfeld muss nur aktiviert werden, wenn ein Kind entweder vorzeitig eingeschult"]
[null,null,"(also lt. Geburtsdatum noch Kindergartenkind ist), oder zurückgestellt (also lt. Geburtsdatum"]
[null,null,"schon Hortkind wäre) wird."]
[]
["Die Folgeseite Seite wird aktiviert, indem der jeweils ersten Zeile der Betreuungsbeginn eingetragen wird.\nWenn nicht alle Seiten genutzt werden, dann zum Drucken das Druckmenü Datei -- Drucken und unter Druckbereich Blatt 1 bis X eintragen."]
[]
[" Das Feld Betreuungsbeginn ist immer auszufüllen, insbesondere in der ersten Zeile jeder Seite."]
[]
[]
[]
["Allgemeine Hinweise"]
[]
["Die Stichtagsmeldung ist ab sofort zusätzlich zu dem unterschriebenen Druckexemplar auch per e-mail als Excel-Tabelle"]
["(NICHT als pdf-Datei!), unter Beachtung der gültigen Datenschutzbestimmungen, an den zuständigen Sachbearbeiter zu versenden."]
[]
["Analog zur Finanzierung der Personalkostenzuschüsse erfolgt auch hier eine Quartalsfinanzierung. Die Kinder"]
["werden entsprechend ihres Alters zum jeweiligen Stichtag erfasst - auch, wenn innerhalb eines Quartals eine Umstufung"]
["erfolgt, ein Kind die Kita verlässt oder hinzu kommt."]
[]
["Nutzungshinweise:"]
["Diese Datei benutzt Makros zur Erstellung der Listen. Sie müssen \"Aktive Inhalte\" aktivieren. Diese Datei wird Ihnen grundsätzlich von Mitarbeitern des "]
["des Landkreises Potsdam-Mittelmark zugeschickt. Sollten Sie von anderen Stellen diese Datei bekommen aktivieren Sie die \"Aktiven Inhalte\" nicht."]
[]
["Kopieren:"]
["Es können nur die Teile aus der Tabelle kopiert werden die einen weißen Hintergrund haben."]
[]
["Sortieren:"]
["Die Sortierung richtet sich nach den ersten drei Spalten der Tabelle in folgender Reihenfolge: Stadt - Kita - Name"]
["Die Sortierung wird vor dem Ausdruck automatisch durchgeführt, kann aber auch manuell über den Button \"Sortieren\" durchgeführt werden."]
[]
["Drucken:"]
["Diese Tabelle kann  ausschließlich über die im ersten Blatt enthaltene Schaltfläche \"Drucken\" ausgedruckt werden."]
[]
["Summen:"]
["Die Summen werden erst beim Druck gebildet und angezeigt."]